Workbook

Sheet Überblick
A1: Fresenius Medical Care AG & Co. KGaA Aktienrückkauf 2019
B3: Datum | D3: 2019-12-06 | E3: 49 | K3: 1 | L3: 4
B5: Gesamte Anzahl zurückgekaufte Aktien: | D5: 186894 | E5: Aktien
B7: Insgesamt zurückgekauftes Volumen (EUR) | D7: 12289499.59
B9: Handels-datum | C9: Handelszeiten (CET) | D9: Anzahl zurückgekaufte Aktien | E9: Durchschnittspreis in € je Aktie | F9: Rückkaufsvolumen in € | G9: Gesamtes Rückkaufs-volumen in €
A10: 49 | B10: 2019-12-02 | C10: 09:00:00 - 17:30:00 | D10: 37000 | E10: 66.46766 | F10: 2459303.42 | G10: 2459303.42
A11: 49 | B11: 2019-12-03 | C11: 09:00:00 - 17:30:00 | D11: 37000 | E11: 65.36145 | F11: 2418373.65 | G11: 4877677.07
A12: 49 | B12: 2019-12-04 | C12: 09:00:00 - 17:30:00 | D12: 39000 | E12: 66.17925 | F12: 2580990.75 | G12: 7458667.82
A13: 49 | B13: 2019-12-05 | C13: 09:00:00 - 17:30:00 | D13: 36500 | E13: 65.97656 | F13: 2408144.44 | G13: 9866812.26
A14: 49 | B14: 2019-12-06 | C14: 09:00:00 - 17:30:00 | D14: 37394 | E14: 64.78813 | F14: 2422687.333 | G14: 12289499.59

Sheet 2-Dezember-2019_GER
A1: Fresenius Medical Care AG & Co. KGaA Aktienrückkauf 2019
C3: Handelsdatum | D3: Anzahl zurückgekaufte Aktien | E3: Durchschnittspreis in € je Aktie | F3: Rückkaufsvolumen in €
C4: 2019-12-02 | D4: =SUM(E7:E2000) -> 37000 | E4: =F4/D4 -> 66.46765568 | F4: =SUMPRODUCT(E7:E5000,F7:F5000) -> 2459303.26
B6: Handelsdatum | C6: Handelszeit | D6: Kauf / Verkauf | E6: Nominale | F6: Ausführungspreis | G6: Währung | H6: Handelsplatz
B7: =C4 -> 2019-12-02 | C7: 09:32:08.130304 CET | D7: =IF(C7="","","Buy") -> Buy | E7: 338 | F7: 67.08 | G7: EUR | H7: XETA
C8: 09:32:08.225311 CET | D8: =IF(C8="","","Buy") -> Buy | E8: 236 | F8: 67.08 | G8: EUR | H8: XETA
C9: 09:36:11.861539 CET | D9: Buy | E9: 288 | F9: 67.08 | G9: EUR | H9: XETA
C10: 09:36:11.905573 CET | D10: Buy | E10: 214 | F10: 67.08 | G10: EUR | H10: XETA
C11: 09:37:21.508158 CET | D11: Buy | E11: 540 | F11: 66.98 | G11: EUR | H11: XETA
C12: 09:44:52.969375 CET | D12: Buy | E12: 406 | F12: 67.1 | G12: EUR | H12: XETA
C13: 09:50:06.418905 CET | D13: Buy | E13: 58 | F13: 67.32 | G13: EUR | H13: XETA
C14: 09:50:06.418973 CET | D14: Buy | E14: 238 | F14: 67.32 | G14: EUR | H14: XETA
C15: 09:52:27.675521 CET | D15: Buy | E15: 358 | F15: 67.28 | G15: EUR | H15: XETA
C16: 09:59:10.232345 CET | D16: Buy | E16: 263 | F16: 67.12 | G16: EUR | H16: XETA
C17: 10:02:25.699794 CET | D17: Buy | E17: 347 | F17: 67.14 | G17: EUR | H17: XETA
C18: 10:05:13.329402 CET | D18: Buy | E18: 59 | F18: 67.02 | G18: EUR | H18: XETA
C19: 10:05:13.329467 CET | D19: Buy | E19: 170 | F19: 67.02 | G19: EUR | H19: XETA
C20: 10:07:52.414348 CET | D20: Buy | E20: 222 | F20: 67.06 | G20: EUR | H20: XETA
C21: 10:10:00.790047 CET | D21: Buy | E21: 231 | F21: 67.04 | G21: EUR | H21: XETA
C22: 10:12:52.114369 CET | D22: Buy | E22: 143 | F22: 67.14 | G22: EUR | H22: XETA
C23: 10:12:52.114499 CET | D23: Buy | E23: 66 | F23: 67.14 | G23: EUR | H23: XETA
C24: 10:16:46.912847 CET | D24: Buy | E24: 243 | F24: 67.2 | G24: EUR | H24: XETA
C25: 10:21:08.125149 CET | D25: Buy | E25: 3 | F25: 67.12 | G25: EUR | H25: XETA
C26: 10:21:08.125224 CET | D26: Buy | E26: 347 | F26: 67.12 | G26: EUR | H26: XETA
C27: 10:22:10.679996 CET | D27: Buy | E27: 218 | F27: 67.1 | G27: EUR | H27: XETA
C28: 10:22:10.680074 CET | D28: Buy | E28: 39 | F28: 67.1 | G28: EUR | H28: XETA
C29: 10:27:11.78149 CET | D29: Buy | E29: 275 | F29: 67.12 | G29: EUR | H29: XETA
C30: 10:30:51.115178 CET | D30: Buy | E30: 220 | F30: 67.12 | G30: EUR | H30: XETA
C31: 10:30:51.115319 CET | D31: Buy | E31: 6 | F31: 67.12 | G31: EUR | H31: XETA
C32: 10:33:37.111245 CET | D32: Buy | E32: 157 | F32: 67.16 | G32: EUR | H32: XETA
C33: 10:33:37.111318 CET | D33: Buy | E33: 83 | F33: 67.16 | G33: EUR | H33: XETA
C34: 10:38:45.597921 CET | D34: Buy | E34: 274 | F34: 67.12 | G34: EUR | H34: XETA
C35: 10:42:13.777223 CET | D35: Buy | E35: 222 | F35: 67.1 | G35: EUR | H35: XETA
C36: 10:44:17.159736 CET | D36: Buy | E36: 400 | F36: 67.06 | G36: EUR | H36: XETA
C37: 10:44:17.159769 CET | D37: Buy | E37: 56 | F37: 67.06 | G37: EUR | H37: XETA
C38: 10:49:36.95624 CET | D38: Buy | E38: 225 | F38: 67.06 | G38: EUR | H38: XETA
C39: 10:53:39.759134 CET | D39: Buy | E39: 455 | F39: 66.94 | G39: EUR | H39: XETA
C40: 11:00:35.666756 CET | D40: Buy | E40: 400 | F40: 66.88 | G40: EUR | H40: XETA
C41: 11:00:35.666793 CET | D41: Buy | E41: 69 | F41: 66.88 | G41: EUR | H41: XETA
C42: 11:03:32.620377 CET | D42: Buy | E42: 287 | F42: 66.88 | G42: EUR | H42: XETA
C43: 11:11:06.721032 CET | D43: Buy | E43: 269 | F43: 66.86 | G43: EUR | H43: XETA
C44: 11:11:06.721154 CET | D44: Buy | E44: 3 | F44: 66.86 | G44: EUR | H44: XETA
C45: 11:17:08.109856 CET | D45: Buy | E45: 320 | F45: 66.82 | G45: EUR | H45: XETA
C46: 11:23:46.367094 CET | D46: Buy | E46: 267 | F46: 66.84 | G46: EUR | H46: XETA
C47: 11:26:10.220288 CET | D47: Buy | E47: 14 | F47: 66.88 | G47: EUR | H47: XETA
C48: 11:28:10.958770 CET | D48: Buy | E48: 47 | F48: 66.86 | G48: EUR | H48: XETA
C49: 11:28:10.967228 CET | D49: Buy | E49: 180 | F49: 66.86 | G49: EUR | H49: XETA
C50: 11:30:35.27216 CET | D50: Buy | E50: 99 | F50: 66.82 | G50: EUR | H50: XETA
C51: 11:34:08.179717 CET | D51: Buy | E51: 121 | F51: 66.84 | G51: EUR | H51: XETA
C52: 11:34:08.181675 CET | D52: Buy | E52: 119 | F52: 66.84 | G52: EUR | H52: XETA
C53: 11:40:38.445125 CET | D53: Buy | E53: 307 | F53: 66.86 | G53: EUR | H53: XETA
C54: 11:46:35.507522 CET | D54: Buy | E54: 224 | F54: 66.84 | G54: EUR | H54: XETA
C55: 11:48:45.654026 CET | D55: Buy | E55: 224 | F55: 66.84 | G55: EUR | H55: XETA
C56: 11:54:04.699974 CET | D56: Buy | E56: 57 | F56: 66.94 | G56: EUR | H56: XETA
C57: 11:54:04.700026 CET | D57: Buy | E57: 210 | F57: 66.94 | G57: EUR | H57: XETA
C58: 11:54:04.700057 CET | D58: Buy | E58: 38 | F58: 66.94 | G58: EUR | H58: XETA
C59: 11:59:44.843617 CET | D59: Buy | E59: 360 | F59: 66.98 | G59: EUR | H59: XETA
C60: 12:00:36.550153 CET | D60: Buy | E60: 250 | F60: 66.88 | G60: EUR | H60: XETA
C61: 12:00:36.550386 CET | D61: Buy | E61: 4 | F61: 66.88 | G61: EUR | H61: XETA
C62: 12:09:30.250666 CET | D62: Buy | E62: 200 | F62: 66.84 | G62: EUR | H62: XETA
C63: 12:09:30.250723 CET | D63: Buy | E63: 48 | F63: 66.84 | G63: EUR | H63: XETA
C64: 12:12:49.549764 CET | D64: Buy | E64: 314 | F64: 66.78 | G64: EUR | H64: XETA
C65: 12:23:56.627225 CET | D65: Buy | E65: 72 | F65: 66.74 | G65: EUR | H65: XETA
C66: 12:23:56.627304 CET | D66: Buy | E66: 328 | F66: 66.74 | G66: EUR | H66: XETA
C67: 12:30:32.962374 CET | D67: Buy | E67: 339 | F67: 66.7 | G67: EUR | H67: XETA
C68: 12:32:49.118161 CET | D68: Buy | E68: 181 | F68: 66.64 | G68: EUR | H68: XETA
C69: 12:32:49.118329 CET | D69: Buy | E69: 50 | F69: 66.64 | G69: EUR | H69: XETA
C70: 12:43:15.691729 CET | D70: Buy | E70: 271 | F70: 66.76 | G70: EUR | H70: XETA
C71: 12:43:47.317116 CET | D71: Buy | E71: 283 | F71: 66.76 | G71: EUR | H71: XETA
C72: 12:44:13.278038 CET | D72: =IF(C72="","","Buy") -> Buy | E72: 35 | F72: 66.68 | G72: EUR | H72: XETA
C73: 12:44:13.278133 CET | D73: Buy | E73: 214 | F73: 66.68 | G73: EUR | H73: XETA
C74: 12:57:02.163199 CET | D74: Buy | E74: 256 | F74: 66.76 | G74: EUR | H74: XETA
C75: 13:05:22.274344 CET | D75: Buy | E75: 490 | F75: 66.68 | G75: EUR | H75: XETA
C76: 13:16:43.378122 CET | D76: Buy | E76: 240 | F76: 66.74 | G76: EUR | H76: XETA
C77: 13:16:43.378196 CET | D77: Buy | E77: 97 | F77: 66.74 | G77: EUR | H77: XETA
C78: 13:22:14.260857 CET | D78: Buy | E78: 338 | F78: 66.64 | G78: EUR | H78: XETA
C79: 13:23:09.217040 CET | D79: Buy | E79: 31 | F79: 66.66 | G79: EUR | H79: XETA
C80: 13:23:09.217114 CET | D80: Buy | E80: 363 | F80: 66.66 | G80: EUR | H80: XETA
C81: 13:25:11.672709 CET | D81: Buy | E81: 222 | F81: 66.64 | G81: EUR | H81: XETA
C82: 13:27:29.586762 CET | D82: Buy | E82: 8 | F82: 66.62 | G82: EUR | H82: XETA
C83: 13:29:49.688612 CET | D83: Buy | E83: 320 | F83: 66.72 | G83: EUR | H83: XETA
C84: 13:31:01.497648 CET | D84: Buy | E84: 230 | F84: 66.7 | G84: EUR | H84: XETA
C85: 13:34:36.856666 CET | D85: Buy | E85: 280 | F85: 66.8 | G85: EUR | H85: XETA
C86: 13:39:20.391081 CET | D86: Buy | E86: 559 | F86: 66.78 | G86: EUR | H86: XETA
C87: 13:41:36.321152 CET | D87: Buy | E87: 244 | F87: 66.8 | G87: EUR | H87: XETA
C88: 13:44:27.465300 CET | D88: Buy | E88: 248 | F88: 66.78 | G88: EUR | H88: XETA
C89: 13:49:21.52504 CET | D89: Buy | E89: 210 | F89: 66.82 | G89: EUR | H89: XETA
C90: 13:49:21.52597 CET | D90: Buy | E90: 8 | F90: 66.82 | G90: EUR | H90: XETA
C91: 13:53:37.884710 CET | D91: Buy | E91: 248 | F91: 66.84 | G91: EUR | H91: XETA
C92: 13:56:12.387893 CET | D92: Buy | E92: 282 | F92: 66.84 | G92: EUR | H92: XETA
C93: 14:02:50.249802 CET | D93: Buy | E93: 63 | F93: 66.84 | G93: EUR | H93: XETA
C94: 14:02:50.249873 CET | D94: Buy | E94: 147 | F94: 66.84 | G94: EUR | H94: XETA
C95: 14:02:50.249908 CET | D95: Buy | E95: 28 | F95: 66.84 | G95: EUR | H95: XETA
C96: 14:06:08.450434 CET | D96: Buy | E96: 432 | F96: 66.84 | G96: EUR | H96: XETA
C97: 14:15:11.381668 CET | D97: Buy | E97: 208 | F97: 66.84 | G97: EUR | H97: XETA
C98: 14:18:19.764786 CET | D98: Buy | E98: 303 | F98: 66.82 | G98: EUR | H98: XETA
C99: 14:18:19.764907 CET | D99: Buy | E99: 115 | F99: 66.82 | G99: EUR | H99: XETA
C100: 14:25:41.293932 CET | D100: Buy | E100: 398 | F100: 66.82 | G100: EUR | H100: XETA
C101: 14:31:42.14431 CET | D101: Buy | E101: 336 | F101: 66.82 | G101: EUR | H101: XETA
C102: 14:31:42.27768 CET | D102: Buy | E102: 40 | F102: 66.82 | G102: EUR | H102: XETA
C103: 14:32:38.632326 CET | D103: Buy | E103: 305 | F103: 66.58 | G103: EUR | H103: XETA
C104: 14:42:58.589421 CET | D104: Buy | E104: 432 | F104: 66.72 | G104: EUR | H104: XETA
C105: 14:52:03.50380 CET | D105: Buy | E105: 182 | F105: 66.5 | G105: EUR | H105: XETA
C106: 14:52:03.50449 CET | D106: Buy | E106: 226 | F106: 66.5 | G106: EUR | H106: XETA
C107: 14:58:00.46137 CET | D107: Buy | E107: 227 | F107: 66.46 | G107: EUR | H107: XETA
C108: 15:03:16.492824 CET | D108: Buy | E108: 242 | F108: 66.44 | G108: EUR | H108: XETA
C109: 15:05:21.566638 CET | D109: Buy | E109: 268 | F109: 66.48 | G109: EUR | H109: XETA
C110: 15:10:02.525373 CET | D110: Buy | E110: 226 | F110: 66.54 | G110: EUR | H110: XETA
C111: 15:14:00.945891 CET | D111: Buy | E111: 70 | F111: 66.48 | G111: EUR | H111: XETA
C112: 15:15:29.586431 CET | D112: Buy | E112: 184 | F112: 66.46 | G112: EUR | H112: XETA
C113: 15:15:29.587208 CET | D113: Buy | E113: 30 | F113: 66.46 | G113: EUR | H113: XETA
C114: 15:20:24.16106 CET | D114: Buy | E114: 332 | F114: 66.48 | G114: EUR | H114: XETA
C115: 15:24:51.757405 CET | D115: Buy | E115: 313 | F115: 66.44 | G115: EUR | H115: XETA
C116: 15:28:18.248476 CET | D116: Buy | E116: 233 | F116: 66.36 | G116: EUR | H116: XETA
C117: 15:30:35.448134 CET | D117: Buy | E117: 162 | F117: 66.38 | G117: EUR | H117: XETA
C118: 15:30:35.448292 CET | D118: Buy | E118: 71 | F118: 66.38 | G118: EUR | H118: XETA
C119: 15:32:22.52871 CET | D119: Buy | E119: 241 | F119: 66.32 | G119: EUR | H119: XETA
C120: 15:33:35.991156 CET | D120: Buy | E120: 112 | F120: 66.3 | G120: EUR | H120: XETA
C121: 15:35:26.347496 CET | D121: Buy | E121: 267 | F121: 66.28 | G121: EUR | H121: XETA
C122: 15:37:38.668826 CET | D122: Buy | E122: 1 | F122: 66.24 | G122: EUR | H122: XETA
C123: 15:38:06.30964 CET | D123: Buy | E123: 200 | F123: 66.24 | G123: EUR | H123: XETA
C124: 15:39:36.48026 CET | D124: Buy | E124: 333 | F124: 66.16 | G124: EUR | H124: XETA
C125: 15:43:10.186204 CET | D125: Buy | E125: 230 | F125: 66.2 | G125: EUR | H125: XETA
C126: 15:46:59.144033 CET | D126: Buy | E126: 10 | F126: 66.06 | G126: EUR | H126: XETA
C127: 15:46:59.146082 CET | D127: Buy | E127: 322 | F127: 66.06 | G127: EUR | H127: XETA
C128: 15:46:59.146110 CET | D128: Buy | E128: 69 | F128: 66.06 | G128: EUR | H128: XETA
C129: 15:46:59.146139 CET | D129: Buy | E129: 31 | F129: 66.06 | G129: EUR | H129: XETA
C130: 15:46:59.146191 CET | D130: Buy | E130: 16 | F130: 66.06 | G130: EUR | H130: XETA
C131: 15:51:30.542128 CET | D131: Buy | E131: 210 | F131: 65.96 | G131: EUR | H131: XETA
C132: 15:52:22.391138 CET | D132: Buy | E132: 208 | F132: 65.96 | G132: EUR | H132: XETA
C133: 15:55:22.282689 CET | D133: Buy | E133: 16 | F133: 66.06 | G133: EUR | H133: XETA
C134: 15:55:22.282736 CET | D134: Buy | E134: 193 | F134: 66.06 | G134: EUR | H134: XETA
C135: 15:57:56.86863 CET | D135: Buy | E135: 220 | F135: 66.02 | G135: EUR | H135: XETA
C136: 15:57:56.86938 CET | D136: =IF(C136="","","Buy") -> Buy | E136: 44 | F136: 66.02 | G136: EUR | H136: XETA
C137: 15:59:41.204137 CET | D137: Buy | E137: 235 | F137: 65.98 | G137: EUR | H137: XETA
C138: 16:00:08.337039 CET | D138: Buy | E138: 270 | F138: 65.9 | G138: EUR | H138: XETA
C139: 16:00:08.337174 CET | D139: Buy | E139: 118 | F139: 65.9 | G139: EUR | H139: XETA
C140: 16:04:23.973264 CET | D140: Buy | E140: 159 | F140: 65.88 | G140: EUR | H140: XETA
C141: 16:04:23.973385 CET | D141: Buy | E141: 81 | F141: 65.88 | G141: EUR | H141: XETA
C142: 16:07:27.569593 CET | D142: Buy | E142: 223 | F142: 65.64 | G142: EUR | H142: XETA
C143: 16:07:27.569638 CET | D143: Buy | E143: 136 | F143: 65.64 | G143: EUR | H143: XETA
C144: 16:10:03.682897 CET | D144: Buy | E144: 291 | F144: 65.66 | G144: EUR | H144: XETA
C145: 16:13:42.184478 CET | D145: Buy | E145: 225 | F145: 65.68 | G145: EUR | H145: XETA
C146: 16:16:07.21665 CET | D146: Buy | E146: 37 | F146: 65.68 | G146: EUR | H146: XETA
C147: 16:16:07.21744 CET | D147: Buy | E147: 352 | F147: 65.68 | G147: EUR | H147: XETA
C148: 16:20:04.108 CET | D148: Buy | E148: 262 | F148: 65.6 | G148: EUR | H148: XETA
C149: 16:21:49.503657 CET | D149: Buy | E149: 217 | F149: 65.62 | G149: EUR | H149: XETA
C150: 16:23:59.700466 CET | D150: Buy | E150: 47 | F150: 65.6 | G150: EUR | H150: XETA
C151: 16:23:59.700552 CET | D151: Buy | E151: 183 | F151: 65.6 | G151: EUR | H151: XETA
C152: 16:23:59.705192 CET | D152: Buy | E152: 47 | F152: 65.6 | G152: EUR | H152: XETA
C153: 16:25:46.853687 CET | D153: Buy | E153: 325 | F153: 65.56 | G153: EUR | H153: XETA
C154: 16:30:02.589221 CET | D154: Buy | E154: 232 | F154: 65.62 | G154: EUR | H154: XETA
C155: 16:32:40.772334 CET | D155: Buy | E155: 280 | F155: 65.6 | G155: EUR | H155: XETA
C156: 16:32:40.772427 CET | D156: Buy | E156: 91 | F156: 65.6 | G156: EUR | H156: XETA
C157: 16:35:05.524758 CET | D157: Buy | E157: 287 | F157: 65.64 | G157: EUR | H157: XETA
C158: 16:35:24.135623 CET | D158: Buy | E158: 129 | F158: 65.58 | G158: EUR | H158: XETA
C159: 16:35:24.136966 CET | D159: Buy | E159: 103 | F159: 65.58 | G159: EUR | H159: XETA
C160: 16:40:47.608709 CET | D160: Buy | E160: 458 | F160: 65.64 | G160: EUR | H160: XETA
C161: 16:45:23.161033 CET | D161: Buy | E161: 122 | F161: 65.8 | G161: EUR | H161: XETA
C162: 16:45:23.161131 CET | D162: Buy | E162: 52 | F162: 65.8 | G162: EUR | H162: XETA
C163: 16:45:23.237056 CET | D163: Buy | E163: 87 | F163: 65.8 | G163: EUR | H163: XETA
C164: 16:46:50.62406 CET | D164: Buy | E164: 244 | F164: 65.76 | G164: EUR | H164: XETA
C165: 16:49:01.273942 CET | D165: Buy | E165: 223 | F165: 65.72 | G165: EUR | H165: XETA
C166: 16:51:02.414809 CET | D166: Buy | E166: 164 | F166: 65.74 | G166: EUR | H166: XETA
C167: 16:51:02.414842 CET | D167: Buy | E167: 44 | F167: 65.74 | G167: EUR | H167: XETA
C168: 16:55:12.38019 CET | D168: Buy | E168: 209 | F168: 65.84 | G168: EUR | H168: XETA
C169: 16:55:12.38117 CET | D169: Buy | E169: 290 | F169: 65.84 | G169: EUR | H169: XETA
C170: 16:57:38.332711 CET | D170: Buy | E170: 16 | F170: 65.8 | G170: EUR | H170: XETA
C171: 16:57:38.333017 CET | D171: Buy | E171: 50 | F171: 65.8 | G171: EUR | H171: XETA
C172: 16:57:38.85358 CET | D172: Buy | E172: 7 | F172: 65.8 | G172: EUR | H172: XETA
C173: 16:57:38.85625 CET | D173: Buy | E173: 210 | F173: 65.8 | G173: EUR | H173: XETA
C174: 16:58:35.969772 CET | D174: Buy | E174: 147 | F174: 65.78 | G174: EUR | H174: XETA
C175: 16:58:35.969845 CET | D175: Buy | E175: 86 | F175: 65.78 | G175: EUR | H175: XETA
C176: 17:02:44.669321 CET | D176: Buy | E176: 223 | F176: 65.76 | G176: EUR | H176: XETA
C177: 17:03:29.142629 CET | D177: Buy | E177: 45 | F177: 65.74 | G177: EUR | H177: XETA
C178: 17:03:29.142905 CET | D178: Buy | E178: 333 | F178: 65.74 | G178: EUR | H178: XETA
C179: 17:06:50.888613 CET | D179: Buy | E179: 435 | F179: 65.7 | G179: EUR | H179: XETA
C180: 17:10:30.400268 CET | D180: Buy | E180: 375 | F180: 65.56 | G180: EUR | H180: XETA
C181: 17:12:52.73761 CET | D181: Buy | E181: 103 | F181: 65.5 | G181: EUR | H181: XETA
C182: 17:16:30.707258 CET | D182: Buy | E182: 433 | F182: 65.5 | G182: EUR | H182: XETA
C183: 17:16:30.707338 CET | D183: Buy | E183: 213 | F183: 65.5 | G183: EUR | H183: XETA
C184: 17:21:12.198374 CET | D184: Buy | E184: 323 | F184: 65.64 | G184: EUR | H184: XETA
C185: 17:23:13.863081 CET | D185: Buy | E185: 344 | F185: 65.68 | G185: EUR | H185: XETA
C186: 17:25:02.628954 CET | D186: Buy | E186: 232 | F186: 65.72 | G186: EUR | H186: XETA
C187: 17:27:52.478740 CET | D187: Buy | E187: 132 | F187: 65.74 | G187: EUR | H187: XETA
C188: 17:27:52.478847 CET | D188: Buy | E188: 172 | F188: 65.74 | G188: EUR | H188: XETA
C189: 17:29:10.533616 CET | D189: Buy | E189: 130 | F189: 65.76 | G189: EUR | H189: XETA
C190: 17:29:10.533666 CET | D190: Buy | E190: 78 | F190: 65.76 | G190: EUR | H190: XETA
C191: 17:29:55.14824 CET | D191: Buy | E191: 86 | F191: 65.74 | G191: EUR | H191: XETA
C192: 17:29:55.14879 CET | D192: Buy | E192: 22 | F192: 65.74 | G192: EUR | H192: XETA
C193: 17:29:55.156309 CET | D193: Buy | E193: 7 | F193: 65.74 | G193: EUR | H193: XETA
C194: 17:29:57.193302 CET | D194: Buy | E194: 1 | F194: 65.74 | G194: EUR | H194: XETA
D200: =IF(C200="","","Buy") -> 
D227: =IF(C227="","","Buy") -> 
D264: =IF(C264="","","Buy") -> 
D535: =IF(C535="","","Buy") ->  | G535: =IF(F535="","","EUR") ->  | H535: =IF(F535="","","XETRA") -> 
D584: =IF(C584="","","Buy") ->  | G584: =IF(F584="","","EUR") -> 
H599: =IF(F599="","","XETRA") -> 
D648: =IF(C648="","","Buy") ->  | G648: =IF(F648="","","EUR") -> 
H663: =IF(F663="","","XETRA") -> 
... 15 more rows

Sheet 3-Dezember-2019_GER
A1: Fresenius Medical Care AG & Co. KGaA Aktienrückkauf 2019
C3: Handelsdatum | D3: Anzahl zurückgekaufte Aktien | E3: Durchschnittspreis in € je Aktie | F3: Rückkaufsvolumen in €
C4: 2019-12-03 | D4: =SUM(E7:E2000) -> 37000 | E4: =F4/D4 -> 65.36144811 | F4: =SUMPRODUCT(E7:E5000,F7:F5000) -> 2418373.58
B6: Handelsdatum | C6: Handelszeit | D6: Kauf / Verkauf | E6: Nominale | F6: Ausführungspreis | G6: Währung | H6: Handelsplatz
B7: =$C$4 -> 2019-12-03 | C7: 09:20:05.46754 CET | D7: =IF(C7="","","Buy") -> Buy | E7: 236 | F7: 65.84 | G7: EUR | H7: XETA
C8: 09:20:05.46839 CET | D8: Buy | E8: 170 | F8: 65.84 | G8: EUR | H8: XETA
C9: 09:20:05.46948 CET | D9: Buy | E9: 62 | F9: 65.84 | G9: EUR | H9: XETA
C10: 09:25:18.785869 CET | D10: Buy | E10: 135 | F10: 65.68 | G10: EUR | H10: XETA
C11: 09:25:18.785900 CET | D11: Buy | E11: 75 | F11: 65.68 | G11: EUR | H11: XETA
C12: 09:30:50.25719 CET | D12: Buy | E12: 51 | F12: 65.66 | G12: EUR | H12: XETA
C13: 09:31:24.679664 CET | D13: Buy | E13: 5 | F13: 65.68 | G13: EUR | H13: XETA
C14: 09:35:17.280295 CET | D14: Buy | E14: 172 | F14: 65.74 | G14: EUR | H14: XETA
C15: 09:35:19.101435 CET | D15: Buy | E15: 955 | F15: 65.72 | G15: EUR | H15: XETA
C16: 09:38:51.980247 CET | D16: Buy | E16: 55 | F16: 65.72 | G16: EUR | H16: XETA
C17: 09:38:51.980310 CET | D17: Buy | E17: 255 | F17: 65.72 | G17: EUR | H17: XETA
C18: 09:40:14.541441 CET | D18: Buy | E18: 239 | F18: 65.72 | G18: EUR | H18: XETA
C19: 09:41:14.108535 CET | D19: Buy | E19: 285 | F19: 65.6 | G19: EUR | H19: XETA
C20: 09:46:47.516401 CET | D20: Buy | E20: 241 | F20: 65.52 | G20: EUR | H20: XETA
C21: 09:52:13.924190 CET | D21: Buy | E21: 331 | F21: 65.48 | G21: EUR | H21: XETA
C22: 09:52:13.924240 CET | D22: Buy | E22: 50 | F22: 65.48 | G22: EUR | H22: XETA
C23: 09:57:27.541514 CET | D23: Buy | E23: 531 | F23: 65.48 | G23: EUR | H23: XETA
C24: 09:59:03.705649 CET | D24: Buy | E24: 322 | F24: 65.44 | G24: EUR | H24: XETA
C25: 10:03:17.600798 CET | D25: Buy | E25: 36 | F25: 65.36 | G25: EUR | H25: XETA
C26: 10:03:17.603730 CET | D26: Buy | E26: 213 | F26: 65.36 | G26: EUR | H26: XETA
C27: 10:07:42.974955 CET | D27: Buy | E27: 239 | F27: 65.36 | G27: EUR | H27: XETA
C28: 10:13:16.715958 CET | D28: Buy | E28: 249 | F28: 65.54 | G28: EUR | H28: XETA
C29: 10:16:02.225718 CET | D29: Buy | E29: 24 | F29: 65.48 | G29: EUR | H29: XETA
C30: 10:16:02.225788 CET | D30: Buy | E30: 287 | F30: 65.48 | G30: EUR | H30: XETA
C31: 10:16:02.225814 CET | D31: Buy | E31: 24 | F31: 65.48 | G31: EUR | H31: XETA
C32: 10:16:02.314452 CET | D32: Buy | E32: 220 | F32: 65.46 | G32: EUR | H32: XETA
C33: 10:20:43.225574 CET | D33: Buy | E33: 320 | F33: 65.52 | G33: EUR | H33: XETA
C34: 10:27:37.255482 CET | D34: Buy | E34: 447 | F34: 65.34 | G34: EUR | H34: XETA
C35: 10:29:23.939600 CET | D35: Buy | E35: 595 | F35: 65.22 | G35: EUR | H35: XETA
C36: 10:40:40.467938 CET | D36: Buy | E36: 11 | F36: 65.26 | G36: EUR | H36: XETA
C37: 10:40:40.468004 CET | D37: Buy | E37: 207 | F37: 65.26 | G37: EUR | H37: XETA
C38: 10:43:06.251155 CET | D38: Buy | E38: 234 | F38: 65.26 | G38: EUR | H38: XETA
C39: 10:44:00.866532 CET | D39: Buy | E39: 400 | F39: 65.18 | G39: EUR | H39: XETA
C40: 10:51:36.567807 CET | D40: Buy | E40: 54 | F40: 65.24 | G40: EUR | H40: XETA
C41: 10:51:36.567870 CET | D41: Buy | E41: 236 | F41: 65.24 | G41: EUR | H41: XETA
C42: 10:57:57.732511 CET | D42: Buy | E42: 120 | F42: 65.42 | G42: EUR | H42: XETA
C43: 10:57:57.732615 CET | D43: Buy | E43: 263 | F43: 65.42 | G43: EUR | H43: XETA
C44: 11:02:15.709181 CET | D44: Buy | E44: 7 | F44: 65.46 | G44: EUR | H44: XETA
C45: 11:02:15.709577 CET | D45: Buy | E45: 231 | F45: 65.46 | G45: EUR | H45: XETA
C46: 11:02:58.719955 CET | D46: Buy | E46: 203 | F46: 65.46 | G46: EUR | H46: XETA
C47: 11:06:30.765684 CET | D47: Buy | E47: 274 | F47: 65.52 | G47: EUR | H47: XETA
C48: 11:06:30.765714 CET | D48: Buy | E48: 56 | F48: 65.52 | G48: EUR | H48: XETA
C49: 11:12:00.747384 CET | D49: Buy | E49: 254 | F49: 65.36 | G49: EUR | H49: XETA
C50: 11:13:10.775461 CET | D50: Buy | E50: 304 | F50: 65.32 | G50: EUR | H50: XETA
C51: 11:20:10.163593 CET | D51: Buy | E51: 218 | F51: 65.28 | G51: EUR | H51: XETA
C52: 11:20:10.163680 CET | D52: Buy | E52: 30 | F52: 65.28 | G52: EUR | H52: XETA
C53: 11:21:33.910111 CET | D53: Buy | E53: 156 | F53: 65.22 | G53: EUR | H53: XETA
C54: 11:32:06.126125 CET | D54: Buy | E54: 15 | F54: 65.22 | G54: EUR | H54: XETA
C55: 11:32:06.126199 CET | D55: Buy | E55: 312 | F55: 65.22 | G55: EUR | H55: XETA
C56: 11:40:25.192243 CET | D56: Buy | E56: 169 | F56: 65.26 | G56: EUR | H56: XETA
C57: 11:40:25.192318 CET | D57: Buy | E57: 45 | F57: 65.26 | G57: EUR | H57: XETA
C58: 11:41:39.22919 CET | D58: Buy | E58: 230 | F58: 65.22 | G58: EUR | H58: XETA
C59: 11:41:39.22984 CET | D59: Buy | E59: 68 | F59: 65.22 | G59: EUR | H59: XETA
C60: 11:48:22.700551 CET | D60: Buy | E60: 220 | F60: 65.18 | G60: EUR | H60: XETA
C61: 11:48:57.154482 CET | D61: Buy | E61: 209 | F61: 65.1 | G61: EUR | H61: XETA
C62: 11:48:57.257811 CET | D62: Buy | E62: 347 | F62: 65.08 | G62: EUR | H62: XETA
C63: 11:51:34.966279 CET | D63: Buy | E63: 247 | F63: 65.1 | G63: EUR | H63: XETA
C64: 11:51:35.143190 CET | D64: Buy | E64: 276 | F64: 65.06 | G64: EUR | H64: XETA
C65: 11:55:53.918165 CET | D65: Buy | E65: 222 | F65: 65.02 | G65: EUR | H65: XETA
C66: 11:59:34.367891 CET | D66: Buy | E66: 286 | F66: 65.04 | G66: EUR | H66: XETA
C67: 12:04:09.215790 CET | D67: Buy | E67: 208 | F67: 65.08 | G67: EUR | H67: XETA
C68: 12:07:09.717640 CET | D68: Buy | E68: 22 | F68: 65.04 | G68: EUR | H68: XETA
C69: 12:08:21.134966 CET | D69: Buy | E69: 84 | F69: 65 | G69: EUR | H69: XETA
C70: 12:08:21.153060 CET | D70: Buy | E70: 101 | F70: 65 | G70: EUR | H70: XETA
C71: 12:08:21.172104 CET | D71: =IF(C71="","","Buy") -> Buy | E71: 134 | F71: 65 | G71: EUR | H71: XETA
C72: 12:12:15.800470 CET | D72: Buy | E72: 225 | F72: 64.96 | G72: EUR | H72: XETA
C73: 12:16:06.512676 CET | D73: Buy | E73: 54 | F73: 64.92 | G73: EUR | H73: XETA
C74: 12:16:06.512746 CET | D74: Buy | E74: 189 | F74: 64.92 | G74: EUR | H74: XETA
C75: 12:22:17.648808 CET | D75: Buy | E75: 233 | F75: 65 | G75: EUR | H75: XETA
C76: 12:25:23.255180 CET | D76: Buy | E76: 239 | F76: 65.04 | G76: EUR | H76: XETA
C77: 12:30:50.284345 CET | D77: Buy | E77: 250 | F77: 65.06 | G77: EUR | H77: XETA
C78: 12:34:49.798946 CET | D78: Buy | E78: 246 | F78: 65.04 | G78: EUR | H78: XETA
C79: 12:34:49.799011 CET | D79: Buy | E79: 3 | F79: 65.04 | G79: EUR | H79: XETA
C80: 12:41:10.483832 CET | D80: Buy | E80: 222 | F80: 65.04 | G80: EUR | H80: XETA
C81: 12:41:10.483897 CET | D81: Buy | E81: 106 | F81: 65.04 | G81: EUR | H81: XETA
C82: 12:47:03.799821 CET | D82: Buy | E82: 367 | F82: 65.06 | G82: EUR | H82: XETA
C83: 13:06:48.817434 CET | D83: Buy | E83: 98 | F83: 65.28 | G83: EUR | H83: XETA
C84: 13:07:50.866436 CET | D84: Buy | E84: 208 | F84: 65.3 | G84: EUR | H84: XETA
C85: 13:10:02.391777 CET | D85: Buy | E85: 254 | F85: 65.26 | G85: EUR | H85: XETA
C86: 13:15:03.436609 CET | D86: Buy | E86: 248 | F86: 65.28 | G86: EUR | H86: XETA
C87: 13:31:21.762190 CET | D87: Buy | E87: 276 | F87: 65.42 | G87: EUR | H87: XETA
C88: 13:42:06.117175 CET | D88: Buy | E88: 185 | F88: 65.4 | G88: EUR | H88: XETA
C89: 13:42:06.117250 CET | D89: Buy | E89: 133 | F89: 65.4 | G89: EUR | H89: XETA
C90: 13:53:26.249644 CET | D90: Buy | E90: 421 | F90: 65.16 | G90: EUR | H90: XETA
C91: 13:55:56.994132 CET | D91: Buy | E91: 212 | F91: 65.12 | G91: EUR | H91: XETA
C92: 14:08:58.956068 CET | D92: Buy | E92: 375 | F92: 65.14 | G92: EUR | H92: XETA
C93: 14:12:18.485291 CET | D93: Buy | E93: 241 | F93: 65.14 | G93: EUR | H93: XETA
C94: 14:16:19.696687 CET | D94: Buy | E94: 253 | F94: 65.08 | G94: EUR | H94: XETA
C95: 14:16:19.696754 CET | D95: Buy | E95: 138 | F95: 65.08 | G95: EUR | H95: XETA
C96: 14:23:20.790761 CET | D96: Buy | E96: 385 | F96: 65.08 | G96: EUR | H96: XETA
C97: 14:23:20.790823 CET | D97: Buy | E97: 57 | F97: 65.08 | G97: EUR | H97: XETA
C98: 14:30:03.297555 CET | D98: Buy | E98: 36 | F98: 65.16 | G98: EUR | H98: XETA
C99: 14:30:03.297593 CET | D99: Buy | E99: 234 | F99: 65.16 | G99: EUR | H99: XETA
C100: 14:33:12.869916 CET | D100: Buy | E100: 352 | F100: 65.1 | G100: EUR | H100: XETA
C101: 14:41:04.25562 CET | D101: Buy | E101: 26 | F101: 65.24 | G101: EUR | H101: XETA
C102: 14:41:04.25637 CET | D102: Buy | E102: 301 | F102: 65.24 | G102: EUR | H102: XETA
C103: 14:42:54.945205 CET | D103: Buy | E103: 90 | F103: 65.3 | G103: EUR | H103: XETA
C104: 14:42:54.945271 CET | D104: Buy | E104: 127 | F104: 65.3 | G104: EUR | H104: XETA
C105: 14:45:23.632066 CET | D105: Buy | E105: 205 | F105: 65.32 | G105: EUR | H105: XETA
C106: 14:46:55.234147 CET | D106: Buy | E106: 169 | F106: 65.32 | G106: EUR | H106: XETA
C107: 14:46:55.234215 CET | D107: Buy | E107: 107 | F107: 65.32 | G107: EUR | H107: XETA
C108: 14:54:06.701542 CET | D108: Buy | E108: 100 | F108: 65.26 | G108: EUR | H108: XETA
C109: 14:54:06.703686 CET | D109: Buy | E109: 5 | F109: 65.26 | G109: EUR | H109: XETA
C110: 14:54:06.703724 CET | D110: Buy | E110: 181 | F110: 65.26 | G110: EUR | H110: XETA
C111: 14:56:21.117621 CET | D111: Buy | E111: 261 | F111: 65.32 | G111: EUR | H111: XETA
C112: 15:00:19.975480 CET | D112: Buy | E112: 240 | F112: 65.3 | G112: EUR | H112: XETA
C113: 15:03:28.622354 CET | D113: Buy | E113: 243 | F113: 65.32 | G113: EUR | H113: XETA
C114: 15:06:07.545436 CET | D114: Buy | E114: 124 | F114: 65.32 | G114: EUR | H114: XETA
C115: 15:07:34.778582 CET | D115: Buy | E115: 226 | F115: 65.32 | G115: EUR | H115: XETA
C116: 15:12:49.931981 CET | D116: Buy | E116: 399 | F116: 65.38 | G116: EUR | H116: XETA
C117: 15:15:22.163648 CET | D117: Buy | E117: 300 | F117: 65.32 | G117: EUR | H117: XETA
C118: 15:22:24.130295 CET | D118: Buy | E118: 123 | F118: 65.14 | G118: EUR | H118: XETA
C119: 15:22:24.130339 CET | D119: Buy | E119: 250 | F119: 65.14 | G119: EUR | H119: XETA
C120: 15:28:00.711687 CET | D120: Buy | E120: 664 | F120: 65.22 | G120: EUR | H120: XETA
C121: 15:30:40.245224 CET | D121: Buy | E121: 335 | F121: 65.2 | G121: EUR | H121: XETA
C122: 15:35:08.37792 CET | D122: Buy | E122: 299 | F122: 65.3 | G122: EUR | H122: XETA
C123: 15:35:08.37850 CET | D123: Buy | E123: 8 | F123: 65.3 | G123: EUR | H123: XETA
C124: 15:36:46.416454 CET | D124: Buy | E124: 492 | F124: 65.38 | G124: EUR | H124: XETA
C125: 15:39:15.15395 CET | D125: Buy | E125: 243 | F125: 65.34 | G125: EUR | H125: XETA
C126: 15:39:15.229348 CET | D126: Buy | E126: 223 | F126: 65.32 | G126: EUR | H126: XETA
C127: 15:45:14.992382 CET | D127: Buy | E127: 163 | F127: 65.26 | G127: EUR | H127: XETA
C128: 15:47:15.500640 CET | D128: Buy | E128: 273 | F128: 65.28 | G128: EUR | H128: XETA
C129: 15:48:47.89625 CET | D129: Buy | E129: 61 | F129: 65.22 | G129: EUR | H129: XETA
C130: 15:48:47.89687 CET | D130: Buy | E130: 335 | F130: 65.22 | G130: EUR | H130: XETA
C131: 15:52:45.373750 CET | D131: Buy | E131: 50 | F131: 65.26 | G131: EUR | H131: XETA
C132: 15:53:58.24440 CET | D132: Buy | E132: 2 | F132: 65.3 | G132: EUR | H132: XETA
C133: 15:53:58.24483 CET | D133: Buy | E133: 7 | F133: 65.3 | G133: EUR | H133: XETA
C134: 15:53:58.24548 CET | D134: Buy | E134: 357 | F134: 65.3 | G134: EUR | H134: XETA
C135: 15:53:58.24602 CET | D135: =IF(C135="","","Buy") -> Buy | E135: 2 | F135: 65.3 | G135: EUR | H135: XETA
C136: 15:58:04.1835 CET | D136: Buy | E136: 50 | F136: 65.34 | G136: EUR | H136: XETA
C137: 15:58:04.1904 CET | D137: Buy | E137: 356 | F137: 65.34 | G137: EUR | H137: XETA
C138: 15:59:40.106697 CET | D138: Buy | E138: 359 | F138: 65.32 | G138: EUR | H138: XETA
C139: 16:03:04.785050 CET | D139: Buy | E139: 216 | F139: 65.38 | G139: EUR | H139: XETA
C140: 16:06:28.872592 CET | D140: Buy | E140: 346 | F140: 65.4 | G140: EUR | H140: XETA
C141: 16:08:01.512941 CET | D141: Buy | E141: 177 | F141: 65.4 | G141: EUR | H141: XETA
C142: 16:08:01.513008 CET | D142: Buy | E142: 53 | F142: 65.4 | G142: EUR | H142: XETA
C143: 16:10:49.359408 CET | D143: Buy | E143: 106 | F143: 65.36 | G143: EUR | H143: XETA
C144: 16:10:49.359491 CET | D144: Buy | E144: 141 | F144: 65.36 | G144: EUR | H144: XETA
C145: 16:12:20.418919 CET | D145: Buy | E145: 348 | F145: 65.44 | G145: EUR | H145: XETA
C146: 16:17:49.203993 CET | D146: Buy | E146: 165 | F146: 65.6 | G146: EUR | H146: XETA
C147: 16:17:49.204341 CET | D147: Buy | E147: 73 | F147: 65.6 | G147: EUR | H147: XETA
C148: 16:19:33.769178 CET | D148: Buy | E148: 31 | F148: 65.64 | G148: EUR | H148: XETA
C149: 16:19:33.769246 CET | D149: Buy | E149: 176 | F149: 65.64 | G149: EUR | H149: XETA
C150: 16:20:24.474353 CET | D150: Buy | E150: 212 | F150: 65.64 | G150: EUR | H150: XETA
C151: 16:21:00.420465 CET | D151: Buy | E151: 207 | F151: 65.64 | G151: EUR | H151: XETA
C152: 16:21:00.424950 CET | D152: Buy | E152: 47 | F152: 65.64 | G152: EUR | H152: XETA
C153: 16:26:09.135344 CET | D153: Buy | E153: 152 | F153: 65.46 | G153: EUR | H153: XETA
C154: 16:26:09.135406 CET | D154: Buy | E154: 328 | F154: 65.46 | G154: EUR | H154: XETA
C155: 16:30:11.494828 CET | D155: Buy | E155: 173 | F155: 65.46 | G155: EUR | H155: XETA
C156: 16:30:11.494865 CET | D156: Buy | E156: 76 | F156: 65.46 | G156: EUR | H156: XETA
C157: 16:30:24.616914 CET | D157: Buy | E157: 231 | F157: 65.44 | G157: EUR | H157: XETA
C158: 16:35:06.634045 CET | D158: Buy | E158: 47 | F158: 65.6 | G158: EUR | H158: XETA
C159: 16:35:06.634111 CET | D159: Buy | E159: 217 | F159: 65.6 | G159: EUR | H159: XETA
C160: 16:38:08.414732 CET | D160: Buy | E160: 231 | F160: 65.56 | G160: EUR | H160: XETA
C161: 16:38:24.353109 CET | D161: Buy | E161: 200 | F161: 65.52 | G161: EUR | H161: XETA
C162: 16:38:24.360593 CET | D162: Buy | E162: 17 | F162: 65.52 | G162: EUR | H162: XETA
C163: 16:43:36.512718 CET | D163: Buy | E163: 85 | F163: 65.66 | G163: EUR | H163: XETA
C164: 16:43:36.512781 CET | D164: Buy | E164: 330 | F164: 65.66 | G164: EUR | H164: XETA
C165: 16:46:26.965193 CET | D165: Buy | E165: 50 | F165: 65.64 | G165: EUR | H165: XETA
C166: 16:46:26.965255 CET | D166: Buy | E166: 176 | F166: 65.64 | G166: EUR | H166: XETA
C167: 16:48:42.841560 CET | D167: Buy | E167: 34 | F167: 65.58 | G167: EUR | H167: XETA
C168: 16:48:42.841635 CET | D168: Buy | E168: 375 | F168: 65.58 | G168: EUR | H168: XETA
C169: 16:53:29.513435 CET | D169: Buy | E169: 92 | F169: 65.56 | G169: EUR | H169: XETA
C170: 16:53:29.513472 CET | D170: Buy | E170: 132 | F170: 65.56 | G170: EUR | H170: XETA
C171: 16:54:03.141901 CET | D171: Buy | E171: 164 | F171: 65.54 | G171: EUR | H171: XETA
C172: 16:55:36.256295 CET | D172: Buy | E172: 404 | F172: 65.56 | G172: EUR | H172: XETA
C173: 17:00:15.138620 CET | D173: Buy | E173: 400 | F173: 65.54 | G173: EUR | H173: XETA
C174: 17:00:15.138652 CET | D174: Buy | E174: 83 | F174: 65.54 | G174: EUR | H174: XETA
C175: 17:04:03.875565 CET | D175: Buy | E175: 214 | F175: 65.5 | G175: EUR | H175: XETA
C176: 17:05:44.46142 CET | D176: Buy | E176: 124 | F176: 65.46 | G176: EUR | H176: XETA
C177: 17:05:44.46214 CET | D177: Buy | E177: 127 | F177: 65.46 | G177: EUR | H177: XETA
C178: 17:06:58.105888 CET | D178: Buy | E178: 72 | F178: 65.46 | G178: EUR | H178: XETA
C179: 17:06:58.107748 CET | D179: Buy | E179: 167 | F179: 65.46 | G179: EUR | H179: XETA
C180: 17:09:29.601244 CET | D180: Buy | E180: 274 | F180: 65.5 | G180: EUR | H180: XETA
C181: 17:10:42.627435 CET | D181: Buy | E181: 246 | F181: 65.52 | G181: EUR | H181: XETA
C182: 17:14:58.301973 CET | D182: Buy | E182: 259 | F182: 65.56 | G182: EUR | H182: XETA
C183: 17:15:36.642319 CET | D183: Buy | E183: 204 | F183: 65.56 | G183: EUR | H183: XETA
C184: 17:17:32.790683 CET | D184: Buy | E184: 243 | F184: 65.58 | G184: EUR | H184: XETA
C185: 17:19:06.343934 CET | D185: Buy | E185: 212 | F185: 65.58 | G185: EUR | H185: XETA
C186: 17:22:07.356446 CET | D186: Buy | E186: 279 | F186: 65.58 | G186: EUR | H186: XETA
C187: 17:26:38.306232 CET | D187: Buy | E187: 265 | F187: 65.58 | G187: EUR | H187: XETA
C188: 17:26:55.664907 CET | D188: Buy | E188: 494 | F188: 65.56 | G188: EUR | H188: XETA
C189: 17:29:45.111600 CET | D189: Buy | E189: 252 | F189: 65.54 | G189: EUR | H189: XETA
D199: =IF(C199="","","Buy") -> 
D263: =IF(C263="","","Buy") -> 
D327: =IF(C327="","","Buy") -> 
D391: =IF(C391="","","Buy") -> 
D434: =IF(C434="","","Buy") -> 
D456: =IF(C456="","","Buy") -> 
D520: =IF(C520="","","Buy") -> 
D584: =IF(C584="","","Buy") -> 
D648: =IF(C648="","","Buy") -> 
D712: =IF(C712="","","Buy") -> 
D776: =IF(C776="","","Buy") -> 
D840: =IF(C840="","","Buy") -> 
D904: =IF(C904="","","Buy") -> 
... 1 more rows

Sheet 4-Dezember-2019_GER
A1: Fresenius Medical Care AG & Co. KGaA Aktienrückkauf 2019
C3: Handelsdatum | D3: Anzahl zurückgekaufte Aktien | E3: Durchschnittspreis in € je Aktie | F3: Rückkaufsvolumen in €
C4: 2019-12-04 | D4: =SUM(E7:E2000) -> 39000 | E4: =F4/D4 -> 66.17924667 | F4: =SUMPRODUCT(E7:E5000,F7:F5000) -> 2580990.62
B6: Handelsdatum | C6: Handelszeit | D6: Kauf / Verkauf | E6: Nominale | F6: Ausführungspreis | G6: Währung | H6: Handelsplatz
B7: =$C$4 -> 2019-12-04 | C7: 09:23:58.850738 CET | D7: =IF(C7="","","Buy") -> Buy | E7: 12 | F7: 65.58 | G7: EUR | H7: XETA
C8: 09:23:58.850796 CET | D8: =IF(C8="","","Buy") -> Buy | E8: 315 | F8: 65.58 | G8: EUR | H8: XETA
C9: 09:27:23.205417 CET | D9: Buy | E9: 458 | F9: 65.52 | G9: EUR | H9: XETA
C10: 09:27:23.93644 CET | D10: Buy | E10: 342 | F10: 65.56 | G10: EUR | H10: XETA
C11: 09:27:46.587798 CET | D11: Buy | E11: 322 | F11: 65.52 | G11: EUR | H11: XETA
C12: 09:35:04.645590 CET | D12: Buy | E12: 233 | F12: 65.48 | G12: EUR | H12: XETA
C13: 09:37:00.267973 CET | D13: Buy | E13: 217 | F13: 65.56 | G13: EUR | H13: XETA
C14: 09:39:01.955195 CET | D14: Buy | E14: 211 | F14: 65.56 | G14: EUR | H14: XETA
C15: 09:41:23.138683 CET | D15: Buy | E15: 349 | F15: 65.5 | G15: EUR | H15: XETA
C16: 09:43:30.994665 CET | D16: Buy | E16: 241 | F16: 65.56 | G16: EUR | H16: XETA
C17: 09:52:08.184882 CET | D17: Buy | E17: 287 | F17: 65.62 | G17: EUR | H17: XETA
C18: 09:53:29.683898 CET | D18: Buy | E18: 331 | F18: 65.66 | G18: EUR | H18: XETA
C19: 09:56:48.295034 CET | D19: Buy | E19: 9 | F19: 65.82 | G19: EUR | H19: XETA
C20: 09:56:48.295078 CET | D20: Buy | E20: 232 | F20: 65.82 | G20: EUR | H20: XETA
C21: 09:57:35.111733 CET | D21: Buy | E21: 217 | F21: 65.82 | G21: EUR | H21: XETA
C22: 09:57:35.111809 CET | D22: Buy | E22: 38 | F22: 65.82 | G22: EUR | H22: XETA
C23: 10:01:41.309006 CET | D23: Buy | E23: 236 | F23: 65.72 | G23: EUR | H23: XETA
C24: 10:07:15.735670 CET | D24: Buy | E24: 586 | F24: 66.06 | G24: EUR | H24: XETA
C25: 10:10:55.976847 CET | D25: Buy | E25: 229 | F25: 66.02 | G25: EUR | H25: XETA
C26: 10:15:14.741637 CET | D26: Buy | E26: 39 | F26: 66.16 | G26: EUR | H26: XETA
C27: 10:16:15.808611 CET | D27: Buy | E27: 177 | F27: 66.18 | G27: EUR | H27: XETA
C28: 10:16:15.808668 CET | D28: Buy | E28: 36 | F28: 66.18 | G28: EUR | H28: XETA
C29: 10:17:20.394324 CET | D29: Buy | E29: 376 | F29: 66.18 | G29: EUR | H29: XETA
C30: 10:23:49.564385 CET | D30: Buy | E30: 282 | F30: 66.2 | G30: EUR | H30: XETA
C31: 10:26:58.443797 CET | D31: Buy | E31: 289 | F31: 66.26 | G31: EUR | H31: XETA
C32: 10:32:00.176016 CET | D32: Buy | E32: 92 | F32: 66.28 | G32: EUR | H32: XETA
C33: 10:32:00.176138 CET | D33: Buy | E33: 187 | F33: 66.28 | G33: EUR | H33: XETA
C34: 10:32:00.70188 CET | D34: Buy | E34: 233 | F34: 66.3 | G34: EUR | H34: XETA
C35: 10:37:09.978230 CET | D35: Buy | E35: 337 | F35: 66.28 | G35: EUR | H35: XETA
C36: 10:40:16.65060 CET | D36: Buy | E36: 80 | F36: 66.28 | G36: EUR | H36: XETA
C37: 10:40:16.65137 CET | D37: Buy | E37: 162 | F37: 66.28 | G37: EUR | H37: XETA
C38: 10:44:35.887676 CET | D38: Buy | E38: 215 | F38: 66.28 | G38: EUR | H38: XETA
C39: 10:47:34.46045 CET | D39: Buy | E39: 232 | F39: 66.3 | G39: EUR | H39: XETA
C40: 10:50:37.403168 CET | D40: Buy | E40: 406 | F40: 66.34 | G40: EUR | H40: XETA
C41: 10:53:25.248763 CET | D41: Buy | E41: 226 | F41: 66.32 | G41: EUR | H41: XETA
C42: 10:53:50.984911 CET | D42: Buy | E42: 214 | F42: 66.3 | G42: EUR | H42: XETA
C43: 11:00:37.627294 CET | D43: Buy | E43: 300 | F43: 66.4 | G43: EUR | H43: XETA
C44: 11:08:00.657730 CET | D44: Buy | E44: 230 | F44: 66.34 | G44: EUR | H44: XETA
C45: 11:11:03.348054 CET | D45: Buy | E45: 245 | F45: 66.38 | G45: EUR | H45: XETA
C46: 11:18:55.408596 CET | D46: Buy | E46: 207 | F46: 66.44 | G46: EUR | H46: XETA
C47: 11:20:14.913484 CET | D47: Buy | E47: 80 | F47: 66.44 | G47: EUR | H47: XETA
C48: 11:20:14.913563 CET | D48: Buy | E48: 211 | F48: 66.44 | G48: EUR | H48: XETA
C49: 11:25:13.375385 CET | D49: Buy | E49: 217 | F49: 66.44 | G49: EUR | H49: XETA
C50: 11:29:00.240617 CET | D50: Buy | E50: 38 | F50: 66.48 | G50: EUR | H50: XETA
C51: 11:29:00.240958 CET | D51: Buy | E51: 207 | F51: 66.48 | G51: EUR | H51: XETA
C52: 11:33:38.944884 CET | D52: Buy | E52: 245 | F52: 66.44 | G52: EUR | H52: XETA
C53: 11:38:38.716153 CET | D53: Buy | E53: 207 | F53: 66.42 | G53: EUR | H53: XETA
C54: 11:38:39.656494 CET | D54: Buy | E54: 250 | F54: 66.4 | G54: EUR | H54: XETA
C55: 11:46:39.634362 CET | D55: Buy | E55: 234 | F55: 66.36 | G55: EUR | H55: XETA
C56: 11:52:32.893413 CET | D56: Buy | E56: 84 | F56: 66.3 | G56: EUR | H56: XETA
C57: 11:52:32.893487 CET | D57: Buy | E57: 175 | F57: 66.3 | G57: EUR | H57: XETA
C58: 11:55:45.10416 CET | D58: Buy | E58: 265 | F58: 66.3 | G58: EUR | H58: XETA
C59: 12:00:41.149885 CET | D59: Buy | E59: 232 | F59: 66.26 | G59: EUR | H59: XETA
C60: 12:05:25.33877 CET | D60: Buy | E60: 342 | F60: 66.2 | G60: EUR | H60: XETA
C61: 12:11:04.143487 CET | D61: Buy | E61: 212 | F61: 66.18 | G61: EUR | H61: XETA
C62: 12:19:23.737729 CET | D62: Buy | E62: 191 | F62: 66.18 | G62: EUR | H62: XETA
C63: 12:19:23.737828 CET | D63: Buy | E63: 90 | F63: 66.18 | G63: EUR | H63: XETA
C64: 12:19:23.941308 CET | D64: Buy | E64: 233 | F64: 66.18 | G64: EUR | H64: XETA
C65: 12:27:53.92514 CET | D65: Buy | E65: 848 | F65: 66.2 | G65: EUR | H65: XETA
C66: 12:42:29.50899 CET | D66: Buy | E66: 230 | F66: 66.14 | G66: EUR | H66: XETA
C67: 12:49:20.950832 CET | D67: Buy | E67: 223 | F67: 66.16 | G67: EUR | H67: XETA
C68: 12:58:24.877868 CET | D68: Buy | E68: 404 | F68: 66.3 | G68: EUR | H68: XETA
C69: 12:58:37.13868 CET | D69: Buy | E69: 220 | F69: 66.3 | G69: EUR | H69: XETA
C70: 12:59:57.85331 CET | D70: Buy | E70: 234 | F70: 66.28 | G70: EUR | H70: XETA
C71: 13:08:43.893701 CET | D71: Buy | E71: 119 | F71: 66.3 | G71: EUR | H71: XETA
C72: 13:08:43.893800 CET | D72: =IF(C72="","","Buy") -> Buy | E72: 135 | F72: 66.3 | G72: EUR | H72: XETA
C73: 13:16:13.590978 CET | D73: Buy | E73: 330 | F73: 66.36 | G73: EUR | H73: XETA
C74: 13:16:13.591064 CET | D74: Buy | E74: 94 | F74: 66.36 | G74: EUR | H74: XETA
C75: 13:22:09.770291 CET | D75: Buy | E75: 207 | F75: 66.34 | G75: EUR | H75: XETA
C76: 13:26:42.569030 CET | D76: Buy | E76: 128 | F76: 66.34 | G76: EUR | H76: XETA
C77: 13:26:42.569071 CET | D77: Buy | E77: 176 | F77: 66.34 | G77: EUR | H77: XETA
C78: 13:32:47.478131 CET | D78: Buy | E78: 299 | F78: 66.36 | G78: EUR | H78: XETA
C79: 13:36:53.83491 CET | D79: Buy | E79: 190 | F79: 66.36 | G79: EUR | H79: XETA
C80: 13:36:53.83537 CET | D80: Buy | E80: 29 | F80: 66.36 | G80: EUR | H80: XETA
C81: 13:40:58.334821 CET | D81: Buy | E81: 212 | F81: 66.3 | G81: EUR | H81: XETA
C82: 13:47:28.365713 CET | D82: Buy | E82: 245 | F82: 66.3 | G82: EUR | H82: XETA
C83: 13:47:28.365747 CET | D83: Buy | E83: 14 | F83: 66.3 | G83: EUR | H83: XETA
C84: 13:49:30.152619 CET | D84: Buy | E84: 254 | F84: 66.3 | G84: EUR | H84: XETA
C85: 13:59:30.22845 CET | D85: Buy | E85: 341 | F85: 66.28 | G85: EUR | H85: XETA
C86: 13:59:33.196962 CET | D86: Buy | E86: 241 | F86: 66.28 | G86: EUR | H86: XETA
C87: 14:05:25.721695 CET | D87: Buy | E87: 145 | F87: 66.26 | G87: EUR | H87: XETA
C88: 14:05:25.721775 CET | D88: Buy | E88: 105 | F88: 66.26 | G88: EUR | H88: XETA
C89: 14:08:07.640281 CET | D89: Buy | E89: 132 | F89: 66.2 | G89: EUR | H89: XETA
C90: 14:08:07.640348 CET | D90: Buy | E90: 98 | F90: 66.2 | G90: EUR | H90: XETA
C91: 14:15:01.31021 CET | D91: Buy | E91: 345 | F91: 66.22 | G91: EUR | H91: XETA
C92: 14:15:01.599991 CET | D92: Buy | E92: 295 | F92: 66.16 | G92: EUR | H92: XETA
C93: 14:24:48.832290 CET | D93: Buy | E93: 73 | F93: 66.14 | G93: EUR | H93: XETA
C94: 14:24:48.832417 CET | D94: Buy | E94: 317 | F94: 66.14 | G94: EUR | H94: XETA
C95: 14:32:24.498816 CET | D95: Buy | E95: 354 | F95: 66.12 | G95: EUR | H95: XETA
C96: 14:32:24.498862 CET | D96: Buy | E96: 157 | F96: 66.12 | G96: EUR | H96: XETA
C97: 14:35:04.661348 CET | D97: Buy | E97: 245 | F97: 66.1 | G97: EUR | H97: XETA
C98: 14:35:04.661531 CET | D98: Buy | E98: 10 | F98: 66.1 | G98: EUR | H98: XETA
C99: 14:40:50.589556 CET | D99: Buy | E99: 81 | F99: 66.02 | G99: EUR | H99: XETA
C100: 14:40:50.589630 CET | D100: Buy | E100: 186 | F100: 66.02 | G100: EUR | H100: XETA
C101: 14:40:50.733328 CET | D101: Buy | E101: 244 | F101: 66.02 | G101: EUR | H101: XETA
C102: 14:44:25.455630 CET | D102: Buy | E102: 228 | F102: 66.04 | G102: EUR | H102: XETA
C103: 14:59:11.995385 CET | D103: Buy | E103: 158 | F103: 66.18 | G103: EUR | H103: XETA
C104: 15:00:01.806473 CET | D104: Buy | E104: 740 | F104: 66.18 | G104: EUR | H104: XETA
C105: 15:00:01.806540 CET | D105: Buy | E105: 25 | F105: 66.18 | G105: EUR | H105: XETA
C106: 15:00:01.966325 CET | D106: Buy | E106: 357 | F106: 66.18 | G106: EUR | H106: XETA
C107: 15:02:42.949887 CET | D107: Buy | E107: 59 | F107: 66.16 | G107: EUR | H107: XETA
C108: 15:02:42.949924 CET | D108: Buy | E108: 178 | F108: 66.16 | G108: EUR | H108: XETA
C109: 15:12:46.500520 CET | D109: Buy | E109: 411 | F109: 66.24 | G109: EUR | H109: XETA
C110: 15:12:46.621814 CET | D110: Buy | E110: 315 | F110: 66.24 | G110: EUR | H110: XETA
C111: 15:15:33.27556 CET | D111: Buy | E111: 164 | F111: 66.26 | G111: EUR | H111: XETA
C112: 15:18:11.543027 CET | D112: Buy | E112: 215 | F112: 66.22 | G112: EUR | H112: XETA
C113: 15:19:58.566617 CET | D113: Buy | E113: 215 | F113: 66.24 | G113: EUR | H113: XETA
C114: 15:23:19.481529 CET | D114: Buy | E114: 121 | F114: 66.18 | G114: EUR | H114: XETA
C115: 15:23:19.481612 CET | D115: Buy | E115: 98 | F115: 66.18 | G115: EUR | H115: XETA
C116: 15:26:57.109894 CET | D116: Buy | E116: 206 | F116: 66.12 | G116: EUR | H116: XETA
C117: 15:29:55.467721 CET | D117: Buy | E117: 271 | F117: 66.12 | G117: EUR | H117: XETA
C118: 15:29:55.592817 CET | D118: Buy | E118: 203 | F118: 66.12 | G118: EUR | H118: XETA
C119: 15:32:01.105869 CET | D119: Buy | E119: 269 | F119: 66.12 | G119: EUR | H119: XETA
C120: 15:36:06.256616 CET | D120: Buy | E120: 224 | F120: 66.24 | G120: EUR | H120: XETA
C121: 15:36:06.256616 CET | D121: Buy | E121: 329 | F121: 66.24 | G121: EUR | H121: XETA
C122: 15:37:23.650190 CET | D122: Buy | E122: 361 | F122: 66.3 | G122: EUR | H122: XETA
C123: 15:44:36.601478 CET | D123: Buy | E123: 279 | F123: 66.26 | G123: EUR | H123: XETA
C124: 15:44:37.636678 CET | D124: Buy | E124: 120 | F124: 66.26 | G124: EUR | H124: XETA
C125: 15:44:37.636761 CET | D125: Buy | E125: 119 | F125: 66.26 | G125: EUR | H125: XETA
C126: 15:47:54.473710 CET | D126: Buy | E126: 251 | F126: 66.28 | G126: EUR | H126: XETA
C127: 15:56:19.405548 CET | D127: Buy | E127: 319 | F127: 66.38 | G127: EUR | H127: XETA
C128: 15:56:57.275695 CET | D128: Buy | E128: 343 | F128: 66.38 | G128: EUR | H128: XETA
C129: 15:56:57.385818 CET | D129: Buy | E129: 438 | F129: 66.36 | G129: EUR | H129: XETA
C130: 15:57:16.921619 CET | D130: Buy | E130: 82 | F130: 66.36 | G130: EUR | H130: XETA
C131: 15:57:24.315510 CET | D131: Buy | E131: 191 | F131: 66.36 | G131: EUR | H131: XETA
C132: 15:58:53.23757 CET | D132: Buy | E132: 102 | F132: 66.34 | G132: EUR | H132: XETA
C133: 16:00:00.41656 CET | D133: Buy | E133: 457 | F133: 66.3 | G133: EUR | H133: XETA
C134: 16:03:58.208148 CET | D134: Buy | E134: 276 | F134: 66.26 | G134: EUR | H134: XETA
C135: 16:03:58.208207 CET | D135: Buy | E135: 41 | F135: 66.26 | G135: EUR | H135: XETA
C136: 16:05:42.649298 CET | D136: =IF(C136="","","Buy") -> Buy | E136: 137 | F136: 66.28 | G136: EUR | H136: XETA
C137: 16:05:42.649366 CET | D137: Buy | E137: 71 | F137: 66.28 | G137: EUR | H137: XETA
C138: 16:09:08.296428 CET | D138: Buy | E138: 394 | F138: 66.22 | G138: EUR | H138: XETA
C139: 16:09:08.296496 CET | D139: Buy | E139: 146 | F139: 66.22 | G139: EUR | H139: XETA
C140: 16:13:54.231120 CET | D140: Buy | E140: 101 | F140: 66.16 | G140: EUR | H140: XETA
C141: 16:13:54.287982 CET | D141: Buy | E141: 89 | F141: 66.16 | G141: EUR | H141: XETA
C142: 16:16:12.750561 CET | D142: Buy | E142: 35 | F142: 66.22 | G142: EUR | H142: XETA
C143: 16:16:12.750625 CET | D143: Buy | E143: 331 | F143: 66.22 | G143: EUR | H143: XETA
C144: 16:17:43.942935 CET | D144: Buy | E144: 229 | F144: 66.2 | G144: EUR | H144: XETA
C145: 16:21:56.246064 CET | D145: Buy | E145: 296 | F145: 66.3 | G145: EUR | H145: XETA
C146: 16:25:50.759860 CET | D146: Buy | E146: 541 | F146: 66.32 | G146: EUR | H146: XETA
C147: 16:30:24.852218 CET | D147: Buy | E147: 228 | F147: 66.22 | G147: EUR | H147: XETA
C148: 16:34:05.102263 CET | D148: Buy | E148: 490 | F148: 66.24 | G148: EUR | H148: XETA
C149: 16:34:05.170266 CET | D149: Buy | E149: 212 | F149: 66.24 | G149: EUR | H149: XETA
C150: 16:38:28.573746 CET | D150: Buy | E150: 234 | F150: 66.22 | G150: EUR | H150: XETA
C151: 16:39:00.846735 CET | D151: Buy | E151: 228 | F151: 66.22 | G151: EUR | H151: XETA
C152: 16:42:39.858025 CET | D152: Buy | E152: 263 | F152: 66.22 | G152: EUR | H152: XETA
C153: 16:42:39.858025 CET | D153: Buy | E153: 233 | F153: 66.22 | G153: EUR | H153: XETA
C154: 16:46:22.180307 CET | D154: Buy | E154: 105 | F154: 66.24 | G154: EUR | H154: XETA
C155: 16:47:27.675937 CET | D155: Buy | E155: 457 | F155: 66.24 | G155: EUR | H155: XETA
C156: 16:51:03.30274 CET | D156: Buy | E156: 211 | F156: 66.24 | G156: EUR | H156: XETA
C157: 16:53:07.190400 CET | D157: Buy | E157: 204 | F157: 66.24 | G157: EUR | H157: XETA
C158: 16:56:02.694440 CET | D158: Buy | E158: 144 | F158: 66.22 | G158: EUR | H158: XETA
C159: 16:56:02.694530 CET | D159: Buy | E159: 24 | F159: 66.22 | G159: EUR | H159: XETA
C160: 16:56:02.703340 CET | D160: Buy | E160: 43 | F160: 66.22 | G160: EUR | H160: XETA
C161: 16:58:23.18864 CET | D161: Buy | E161: 215 | F161: 66.22 | G161: EUR | H161: XETA
C162: 16:58:23.215398 CET | D162: Buy | E162: 224 | F162: 66.22 | G162: EUR | H162: XETA
C163: 17:01:28.791632 CET | D163: Buy | E163: 219 | F163: 66.24 | G163: EUR | H163: XETA
C164: 17:01:58.514963 CET | D164: Buy | E164: 212 | F164: 66.24 | G164: EUR | H164: XETA
C165: 17:03:31.688260 CET | D165: Buy | E165: 117 | F165: 66.24 | G165: EUR | H165: XETA
C166: 17:04:44.509276 CET | D166: Buy | E166: 79 | F166: 66.24 | G166: EUR | H166: XETA
C167: 17:04:44.509322 CET | D167: Buy | E167: 155 | F167: 66.24 | G167: EUR | H167: XETA
C168: 17:06:00.732356 CET | D168: Buy | E168: 227 | F168: 66.24 | G168: EUR | H168: XETA
C169: 17:09:32.350046 CET | D169: Buy | E169: 240 | F169: 66.22 | G169: EUR | H169: XETA
C170: 17:09:32.688188 CET | D170: Buy | E170: 308 | F170: 66.22 | G170: EUR | H170: XETA
C171: 17:12:00.48524 CET | D171: Buy | E171: 231 | F171: 66.2 | G171: EUR | H171: XETA
C172: 17:14:49.877031 CET | D172: Buy | E172: 278 | F172: 66.2 | G172: EUR | H172: XETA
C173: 17:16:45.397967 CET | D173: Buy | E173: 394 | F173: 66.22 | G173: EUR | H173: XETA
C174: 17:19:40.25683 CET | D174: Buy | E174: 92 | F174: 66.22 | G174: EUR | H174: XETA
C175: 17:23:44.646899 CET | D175: Buy | E175: 215 | F175: 66.26 | G175: EUR | H175: XETA
C176: 17:24:02.378942 CET | D176: Buy | E176: 171 | F176: 66.24 | G176: EUR | H176: XETA
C177: 17:24:09.782191 CET | D177: Buy | E177: 244 | F177: 66.24 | G177: EUR | H177: XETA
C178: 17:24:09.782260 CET | D178: Buy | E178: 55 | F178: 66.24 | G178: EUR | H178: XETA
C179: 17:26:13.401158 CET | D179: Buy | E179: 369 | F179: 66.2 | G179: EUR | H179: XETA
C180: 17:29:19.725037 CET | D180: Buy | E180: 357 | F180: 66.2 | G180: EUR | H180: XETA
C181: 17:29:35.671389 CET | D181: Buy | E181: 84 | F181: 66.18 | G181: EUR | H181: XETA
H182: =IF(F182="","","XETRA") -> 
D200: =IF(C200="","","Buy") ->  | H200: =IF(F200="","","XETRA") -> 
D264: =IF(C264="","","Buy") ->  | H264: =IF(F264="","","XETRA") -> 
G300: =IF(F300="","","EUR") -> 
D328: =IF(C328="","","Buy") ->  | G328: =IF(F328="","","EUR") ->  | H328: =IF(F328="","","XETRA") -> 
D392: =IF(C392="","","Buy") ->  | G392: =IF(F392="","","EUR") ->  | H392: =IF(F392="","","XETRA") -> 
D456: =IF(C456="","","Buy") ->  | G456: =IF(F456="","","EUR") ->  | H456: =IF(F456="","","XETRA") -> 
D520: =IF(C520="","","Buy") ->  | G520: =IF(F520="","","EUR") ->  | H520: =IF(F520="","","XETRA") -> 
D584: =IF(C584="","","Buy") ->  | G584: =IF(F584="","","EUR") ->  | H584: =IF(F584="","","XETRA") -> 
D648: =IF(C648="","","Buy") ->  | G648: =IF(F648="","","EUR") ->  | H648: =IF(F648="","","XETRA") -> 
D712: =IF(C712="","","Buy") ->  | G712: =IF(F712="","","EUR") ->  | H712: =IF(F712="","","XETRA") -> 
D776: =IF(C776="","","Buy") ->  | G776: =IF(F776="","","EUR") ->  | H776: =IF(F776="","","XETRA") -> 
D840: =IF(C840="","","Buy") ->  | G840: =IF(F840="","","EUR") ->  | H840: =IF(F840="","","XETRA") -> 
D904: =IF(C904="","","Buy") ->  | G904: =IF(F904="","","EUR") ->  | H904: =IF(F904="","","XETRA") -> 
D968: =IF(C968="","","Buy") ->  | G968: =IF(F968="","","EUR") ->  | H968: =IF(F968="","","XETRA") -> 
G1000: =IF(F1000="","","EUR") ->  | H1000: =IF(F1000="","","XETRA") -> 
G1032: =IF(F1032="","","EUR") ->  | H1032: =IF(F1032="","","XETRA") -> 
G1096: =IF(F1096="","","EUR") ->  | H1096: =IF(F1096="","","XETRA") -> 

Sheet 5-Dezember-2019_GER
A1: Fresenius Medical Care AG & Co. KGaA Aktienrückkauf 2019
C3: Handelsdatum | D3: Anzahl zurückgekaufte Aktien | E3: Durchschnittspreis in € je Aktie | F3: Rückkaufsvolumen in €
C4: 2019-12-05 | D4: =SUM(E7:E2000) -> 36500 | E4: =F4/D4 -> 65.97655507 | F4: =SUMPRODUCT(E7:E5000,F7:F5000) -> 2408144.26
B6: Handelsdatum | C6: Handelszeit | D6: Kauf / Verkauf | E6: Nominale | F6: Ausführungspreis | G6: Währung | H6: Handelsplatz
B7: =+C4 -> 2019-12-05 | C7: 09:40:34.73839 CET | D7: =IF(C7="","","Buy") -> Buy | E7: 205 | F7: 66.04 | G7: EUR | H7: XETA
C8: 09:41:37.857572 CET | D8: Buy | E8: 10 | F8: 66 | G8: EUR | H8: XETA
C9: 09:41:37.857656 CET | D9: Buy | E9: 155 | F9: 66 | G9: EUR | H9: XETA
C10: 09:41:37.857718 CET | D10: Buy | E10: 51 | F10: 66 | G10: EUR | H10: XETA
C11: 09:47:04.811036 CET | D11: Buy | E11: 256 | F11: 65.94 | G11: EUR | H11: XETA
C12: 09:50:42.286805 CET | D12: Buy | E12: 78 | F12: 66 | G12: EUR | H12: XETA
C13: 09:50:42.286871 CET | D13: Buy | E13: 454 | F13: 66 | G13: EUR | H13: XETA
C14: 09:53:50.286473 CET | D14: Buy | E14: 22 | F14: 65.94 | G14: EUR | H14: XETA
C15: 09:53:50.286541 CET | D15: Buy | E15: 185 | F15: 65.94 | G15: EUR | H15: XETA
C16: 09:55:04.5488 CET | D16: Buy | E16: 136 | F16: 65.96 | G16: EUR | H16: XETA
C17: 09:55:04.5548 CET | D17: Buy | E17: 86 | F17: 65.96 | G17: EUR | H17: XETA
C18: 10:00:08.503253 CET | D18: Buy | E18: 411 | F18: 65.96 | G18: EUR | H18: XETA
C19: 10:03:52.851234 CET | D19: Buy | E19: 109 | F19: 65.88 | G19: EUR | H19: XETA
C20: 10:03:52.851294 CET | D20: Buy | E20: 335 | F20: 65.88 | G20: EUR | H20: XETA
C21: 10:06:39.287374 CET | D21: Buy | E21: 122 | F21: 65.86 | G21: EUR | H21: XETA
C22: 10:08:28.811454 CET | D22: Buy | E22: 223 | F22: 65.86 | G22: EUR | H22: XETA
C23: 10:08:28.811528 CET | D23: Buy | E23: 224 | F23: 65.86 | G23: EUR | H23: XETA
C24: 10:09:35.487589 CET | D24: Buy | E24: 250 | F24: 65.84 | G24: EUR | H24: XETA
C25: 10:18:01.621384 CET | D25: Buy | E25: 227 | F25: 65.8 | G25: EUR | H25: XETA
C26: 10:21:42.388327 CET | D26: Buy | E26: 209 | F26: 65.76 | G26: EUR | H26: XETA
C27: 10:23:18.424308 CET | D27: Buy | E27: 103 | F27: 65.76 | G27: EUR | H27: XETA
C28: 10:23:18.424385 CET | D28: Buy | E28: 128 | F28: 65.76 | G28: EUR | H28: XETA
C29: 10:25:34.122978 CET | D29: Buy | E29: 230 | F29: 65.72 | G29: EUR | H29: XETA
C30: 10:29:40.871332 CET | D30: Buy | E30: 261 | F30: 65.68 | G30: EUR | H30: XETA
C31: 10:32:03.719224 CET | D31: Buy | E31: 203 | F31: 65.7 | G31: EUR | H31: XETA
C32: 10:34:36.437381 CET | D32: Buy | E32: 107 | F32: 65.7 | G32: EUR | H32: XETA
C33: 10:36:35.300171 CET | D33: Buy | E33: 150 | F33: 65.7 | G33: EUR | H33: XETA
C34: 10:38:16.839869 CET | D34: Buy | E34: 125 | F34: 65.7 | G34: EUR | H34: XETA
C35: 10:40:36.200724 CET | D35: Buy | E35: 206 | F35: 65.74 | G35: EUR | H35: XETA
C36: 10:41:26.99789 CET | D36: Buy | E36: 243 | F36: 65.7 | G36: EUR | H36: XETA
C37: 10:45:27.738922 CET | D37: Buy | E37: 210 | F37: 65.72 | G37: EUR | H37: XETA
C38: 10:48:32.297830 CET | D38: Buy | E38: 203 | F38: 65.72 | G38: EUR | H38: XETA
C39: 10:54:45.703026 CET | D39: Buy | E39: 200 | F39: 65.72 | G39: EUR | H39: XETA
C40: 10:57:13.78815 CET | D40: Buy | E40: 471 | F40: 65.74 | G40: EUR | H40: XETA
C41: 10:59:37.742509 CET | D41: Buy | E41: 237 | F41: 65.74 | G41: EUR | H41: XETA
C42: 11:00:28.807806 CET | D42: Buy | E42: 258 | F42: 65.74 | G42: EUR | H42: XETA
C43: 11:07:49.190560 CET | D43: Buy | E43: 334 | F43: 65.72 | G43: EUR | H43: XETA
C44: 11:11:48.541596 CET | D44: Buy | E44: 206 | F44: 65.72 | G44: EUR | H44: XETA
C45: 11:16:01.630109 CET | D45: Buy | E45: 200 | F45: 65.72 | G45: EUR | H45: XETA
C46: 11:16:01.630171 CET | D46: Buy | E46: 70 | F46: 65.72 | G46: EUR | H46: XETA
C47: 11:23:38.668712 CET | D47: Buy | E47: 398 | F47: 65.78 | G47: EUR | H47: XETA
C48: 11:34:19.540999 CET | D48: Buy | E48: 57 | F48: 66.06 | G48: EUR | H48: XETA
C49: 11:34:19.541067 CET | D49: Buy | E49: 439 | F49: 66.06 | G49: EUR | H49: XETA
C50: 11:38:19.524709 CET | D50: Buy | E50: 236 | F50: 66.14 | G50: EUR | H50: XETA
C51: 11:38:19.524782 CET | D51: Buy | E51: 8 | F51: 66.14 | G51: EUR | H51: XETA
C52: 11:39:24.908993 CET | D52: Buy | E52: 216 | F52: 66.14 | G52: EUR | H52: XETA
C53: 11:48:15.189111 CET | D53: Buy | E53: 233 | F53: 66.1 | G53: EUR | H53: XETA
C54: 11:56:44.120906 CET | D54: Buy | E54: 219 | F54: 66.16 | G54: EUR | H54: XETA
C55: 11:56:44.43685 CET | D55: Buy | E55: 210 | F55: 66.16 | G55: EUR | H55: XETA
C56: 12:02:41.564513 CET | D56: Buy | E56: 265 | F56: 66.16 | G56: EUR | H56: XETA
C57: 12:07:55.258039 CET | D57: Buy | E57: 294 | F57: 66.18 | G57: EUR | H57: XETA
C58: 12:07:55.264870 CET | D58: Buy | E58: 54 | F58: 66.18 | G58: EUR | H58: XETA
C59: 12:10:53.454538 CET | D59: Buy | E59: 229 | F59: 66.2 | G59: EUR | H59: XETA
C60: 12:16:17.806229 CET | D60: Buy | E60: 36 | F60: 66.16 | G60: EUR | H60: XETA
C61: 12:16:17.806300 CET | D61: Buy | E61: 183 | F61: 66.16 | G61: EUR | H61: XETA
C62: 12:16:17.806356 CET | D62: Buy | E62: 36 | F62: 66.16 | G62: EUR | H62: XETA
C63: 12:19:13.258539 CET | D63: Buy | E63: 134 | F63: 66.16 | G63: EUR | H63: XETA
C64: 12:29:09.132650 CET | D64: Buy | E64: 486 | F64: 66.28 | G64: EUR | H64: XETA
C65: 12:34:57.529666 CET | D65: Buy | E65: 279 | F65: 66.26 | G65: EUR | H65: XETA
C66: 12:40:00.914400 CET | D66: Buy | E66: 259 | F66: 66.28 | G66: EUR | H66: XETA
C67: 12:40:01.124016 CET | D67: Buy | E67: 173 | F67: 66.28 | G67: EUR | H67: XETA
C68: 12:48:50.112980 CET | D68: Buy | E68: 222 | F68: 66.24 | G68: EUR | H68: XETA
C69: 12:48:50.113066 CET | D69: Buy | E69: 23 | F69: 66.24 | G69: EUR | H69: XETA
C70: 12:52:38.427719 CET | D70: Buy | E70: 128 | F70: 66.18 | G70: EUR | H70: XETA
C71: 12:52:38.427943 CET | D71: =IF(C71="","","Buy") -> Buy | E71: 237 | F71: 66.18 | G71: EUR | H71: XETA
C72: 13:04:36.274366 CET | D72: Buy | E72: 148 | F72: 66.16 | G72: EUR | H72: XETA
C73: 13:04:36.274442 CET | D73: Buy | E73: 150 | F73: 66.16 | G73: EUR | H73: XETA
C74: 13:08:33.14534 CET | D74: Buy | E74: 226 | F74: 66.2 | G74: EUR | H74: XETA
C75: 13:18:07.733633 CET | D75: Buy | E75: 56 | F75: 66.18 | G75: EUR | H75: XETA
C76: 13:18:07.733693 CET | D76: Buy | E76: 390 | F76: 66.18 | G76: EUR | H76: XETA
C77: 13:30:40.201726 CET | D77: Buy | E77: 6 | F77: 66.22 | G77: EUR | H77: XETA
C78: 13:30:40.201804 CET | D78: Buy | E78: 130 | F78: 66.22 | G78: EUR | H78: XETA
C79: 13:30:40.201846 CET | D79: Buy | E79: 197 | F79: 66.22 | G79: EUR | H79: XETA
C80: 13:31:31.776439 CET | D80: Buy | E80: 385 | F80: 66.2 | G80: EUR | H80: XETA
C81: 13:40:06.453931 CET | D81: Buy | E81: 119 | F81: 66.14 | G81: EUR | H81: XETA
C82: 13:40:06.454053 CET | D82: Buy | E82: 172 | F82: 66.14 | G82: EUR | H82: XETA
C83: 13:40:06.454132 CET | D83: Buy | E83: 59 | F83: 66.14 | G83: EUR | H83: XETA
C84: 13:42:46.360453 CET | D84: Buy | E84: 231 | F84: 66.14 | G84: EUR | H84: XETA
C85: 13:46:08.514227 CET | D85: Buy | E85: 200 | F85: 66.08 | G85: EUR | H85: XETA
C86: 13:46:08.525898 CET | D86: Buy | E86: 100 | F86: 66.08 | G86: EUR | H86: XETA
C87: 13:56:56.502452 CET | D87: Buy | E87: 401 | F87: 66.1 | G87: EUR | H87: XETA
C88: 14:00:22.253431 CET | D88: Buy | E88: 217 | F88: 66.12 | G88: EUR | H88: XETA
C89: 14:03:54.916755 CET | D89: Buy | E89: 418 | F89: 66.02 | G89: EUR | H89: XETA
C90: 14:12:19.651295 CET | D90: Buy | E90: 254 | F90: 65.98 | G90: EUR | H90: XETA
C91: 14:15:14.714077 CET | D91: Buy | E91: 232 | F91: 65.96 | G91: EUR | H91: XETA
C92: 14:21:03.301906 CET | D92: Buy | E92: 82 | F92: 65.98 | G92: EUR | H92: XETA
C93: 14:21:13.156971 CET | D93: Buy | E93: 63 | F93: 65.98 | G93: EUR | H93: XETA
C94: 14:24:06.442879 CET | D94: Buy | E94: 265 | F94: 65.96 | G94: EUR | H94: XETA
C95: 14:26:23.289689 CET | D95: Buy | E95: 66 | F95: 66 | G95: EUR | H95: XETA
C96: 14:27:23.301319 CET | D96: Buy | E96: 157 | F96: 66 | G96: EUR | H96: XETA
C97: 14:28:07.637108 CET | D97: Buy | E97: 16 | F97: 66 | G97: EUR | H97: XETA
C98: 14:35:15.518217 CET | D98: Buy | E98: 17 | F98: 66.06 | G98: EUR | H98: XETA
C99: 14:35:15.518254 CET | D99: Buy | E99: 406 | F99: 66.06 | G99: EUR | H99: XETA
C100: 14:35:15.518308 CET | D100: Buy | E100: 236 | F100: 66.06 | G100: EUR | H100: XETA
C101: 14:38:36.193382 CET | D101: Buy | E101: 182 | F101: 66.12 | G101: EUR | H101: XETA
C102: 14:38:36.193488 CET | D102: Buy | E102: 61 | F102: 66.12 | G102: EUR | H102: XETA
C103: 14:43:26.994175 CET | D103: Buy | E103: 405 | F103: 66.16 | G103: EUR | H103: XETA
C104: 14:48:56.193534 CET | D104: Buy | E104: 399 | F104: 66.24 | G104: EUR | H104: XETA
C105: 14:51:41.103210 CET | D105: Buy | E105: 5 | F105: 66.24 | G105: EUR | H105: XETA
C106: 14:57:32.832604 CET | D106: Buy | E106: 266 | F106: 66.28 | G106: EUR | H106: XETA
C107: 14:57:32.832724 CET | D107: Buy | E107: 266 | F107: 66.28 | G107: EUR | H107: XETA
C108: 15:00:17.486603 CET | D108: Buy | E108: 308 | F108: 66.26 | G108: EUR | H108: XETA
C109: 15:00:17.486712 CET | D109: Buy | E109: 46 | F109: 66.26 | G109: EUR | H109: XETA
C110: 15:00:17.486764 CET | D110: Buy | E110: 54 | F110: 66.26 | G110: EUR | H110: XETA
C111: 15:08:03.714953 CET | D111: Buy | E111: 283 | F111: 66.2 | G111: EUR | H111: XETA
C112: 15:11:46.129052 CET | D112: Buy | E112: 400 | F112: 66.18 | G112: EUR | H112: XETA
C113: 15:11:46.129113 CET | D113: Buy | E113: 27 | F113: 66.18 | G113: EUR | H113: XETA
C114: 15:18:29.841802 CET | D114: Buy | E114: 460 | F114: 66.22 | G114: EUR | H114: XETA
C115: 15:24:14.1459 CET | D115: Buy | E115: 320 | F115: 66.16 | G115: EUR | H115: XETA
C116: 15:25:54.527180 CET | D116: Buy | E116: 100 | F116: 66.16 | G116: EUR | H116: XETA
C117: 15:25:54.527254 CET | D117: Buy | E117: 107 | F117: 66.16 | G117: EUR | H117: XETA
C118: 15:27:44.646996 CET | D118: Buy | E118: 223 | F118: 66.14 | G118: EUR | H118: XETA
C119: 15:30:03.903474 CET | D119: Buy | E119: 289 | F119: 66.16 | G119: EUR | H119: XETA
C120: 15:32:03.70901 CET | D120: Buy | E120: 4 | F120: 66.08 | G120: EUR | H120: XETA
C121: 15:32:03.70967 CET | D121: Buy | E121: 211 | F121: 66.08 | G121: EUR | H121: XETA
C122: 15:34:37.338194 CET | D122: Buy | E122: 89 | F122: 66.06 | G122: EUR | H122: XETA
C123: 15:34:37.338301 CET | D123: Buy | E123: 116 | F123: 66.06 | G123: EUR | H123: XETA
C124: 15:34:37.437752 CET | D124: Buy | E124: 202 | F124: 66.06 | G124: EUR | H124: XETA
C125: 15:36:33.872536 CET | D125: Buy | E125: 317 | F125: 66.1 | G125: EUR | H125: XETA
C126: 15:36:33.954582 CET | D126: Buy | E126: 281 | F126: 66.1 | G126: EUR | H126: XETA
C127: 15:41:22.362105 CET | D127: Buy | E127: 200 | F127: 65.96 | G127: EUR | H127: XETA
C128: 15:41:22.372397 CET | D128: Buy | E128: 14 | F128: 65.96 | G128: EUR | H128: XETA
C129: 15:44:07.938016 CET | D129: Buy | E129: 35 | F129: 66 | G129: EUR | H129: XETA
C130: 15:44:07.938110 CET | D130: Buy | E130: 231 | F130: 66 | G130: EUR | H130: XETA
C131: 15:45:01.963911 CET | D131: Buy | E131: 14 | F131: 66 | G131: EUR | H131: XETA
C132: 15:46:01.112256 CET | D132: Buy | E132: 42 | F132: 66 | G132: EUR | H132: XETA
C133: 15:46:55.795546 CET | D133: Buy | E133: 49 | F133: 66 | G133: EUR | H133: XETA
C134: 15:46:55.795601 CET | D134: Buy | E134: 348 | F134: 66 | G134: EUR | H134: XETA
C135: 15:49:01.256367 CET | D135: =IF(C135="","","Buy") -> Buy | E135: 56 | F135: 65.96 | G135: EUR | H135: XETA
C136: 15:49:01.256465 CET | D136: Buy | E136: 101 | F136: 65.96 | G136: EUR | H136: XETA
C137: 15:49:01.256521 CET | D137: Buy | E137: 56 | F137: 65.96 | G137: EUR | H137: XETA
C138: 15:50:54.104498 CET | D138: Buy | E138: 23 | F138: 65.94 | G138: EUR | H138: XETA
C139: 15:50:54.104561 CET | D139: Buy | E139: 398 | F139: 65.94 | G139: EUR | H139: XETA
C140: 15:54:09.180890 CET | D140: Buy | E140: 303 | F140: 65.94 | G140: EUR | H140: XETA
C141: 15:56:12.490673 CET | D141: Buy | E141: 190 | F141: 65.94 | G141: EUR | H141: XETA
C142: 15:56:12.514798 CET | D142: Buy | E142: 168 | F142: 65.94 | G142: EUR | H142: XETA
C143: 16:00:08.273685 CET | D143: Buy | E143: 314 | F143: 65.84 | G143: EUR | H143: XETA
C144: 16:00:08.273722 CET | D144: Buy | E144: 154 | F144: 65.84 | G144: EUR | H144: XETA
C145: 16:04:51.271253 CET | D145: Buy | E145: 239 | F145: 65.8 | G145: EUR | H145: XETA
C146: 16:06:20.323384 CET | D146: Buy | E146: 128 | F146: 65.78 | G146: EUR | H146: XETA
C147: 16:07:45.185616 CET | D147: Buy | E147: 262 | F147: 65.8 | G147: EUR | H147: XETA
C148: 16:09:39.913243 CET | D148: Buy | E148: 77 | F148: 65.74 | G148: EUR | H148: XETA
C149: 16:09:39.913328 CET | D149: Buy | E149: 111 | F149: 65.74 | G149: EUR | H149: XETA
C150: 16:11:41.951912 CET | D150: Buy | E150: 259 | F150: 65.78 | G150: EUR | H150: XETA
C151: 16:14:26.917628 CET | D151: Buy | E151: 435 | F151: 65.76 | G151: EUR | H151: XETA
C152: 16:19:00.507877 CET | D152: Buy | E152: 234 | F152: 65.84 | G152: EUR | H152: XETA
C153: 16:21:00.866149 CET | D153: Buy | E153: 114 | F153: 65.86 | G153: EUR | H153: XETA
C154: 16:21:00.866333 CET | D154: Buy | E154: 90 | F154: 65.86 | G154: EUR | H154: XETA
C155: 16:21:31.502586 CET | D155: Buy | E155: 211 | F155: 65.86 | G155: EUR | H155: XETA
C156: 16:24:43.701367 CET | D156: Buy | E156: 347 | F156: 65.88 | G156: EUR | H156: XETA
C157: 16:30:37.956696 CET | D157: Buy | E157: 277 | F157: 65.9 | G157: EUR | H157: XETA
C158: 16:30:38.16838 CET | D158: Buy | E158: 359 | F158: 65.9 | G158: EUR | H158: XETA
C159: 16:34:04.710022 CET | D159: Buy | E159: 304 | F159: 65.9 | G159: EUR | H159: XETA
C160: 16:36:41.799945 CET | D160: Buy | E160: 218 | F160: 65.88 | G160: EUR | H160: XETA
C161: 16:39:15.728649 CET | D161: Buy | E161: 43 | F161: 65.88 | G161: EUR | H161: XETA
C162: 16:39:15.728683 CET | D162: Buy | E162: 276 | F162: 65.88 | G162: EUR | H162: XETA
C163: 16:41:44.368943 CET | D163: Buy | E163: 305 | F163: 65.88 | G163: EUR | H163: XETA
C164: 16:44:06.284221 CET | D164: Buy | E164: 208 | F164: 65.84 | G164: EUR | H164: XETA
C165: 16:46:05.742550 CET | D165: Buy | E165: 262 | F165: 65.84 | G165: EUR | H165: XETA
C166: 16:46:05.742616 CET | D166: Buy | E166: 179 | F166: 65.84 | G166: EUR | H166: XETA
C167: 16:51:16.489040 CET | D167: Buy | E167: 230 | F167: 65.9 | G167: EUR | H167: XETA
C168: 16:53:05.313689 CET | D168: Buy | E168: 180 | F168: 65.88 | G168: EUR | H168: XETA
C169: 16:53:05.313735 CET | D169: Buy | E169: 164 | F169: 65.88 | G169: EUR | H169: XETA
C170: 16:55:36.264585 CET | D170: Buy | E170: 225 | F170: 65.9 | G170: EUR | H170: XETA
C171: 16:59:52.367715 CET | D171: Buy | E171: 36 | F171: 65.92 | G171: EUR | H171: XETA
C172: 16:59:52.367788 CET | D172: Buy | E172: 511 | F172: 65.92 | G172: EUR | H172: XETA
C173: 17:02:10.305930 CET | D173: Buy | E173: 16 | F173: 65.88 | G173: EUR | H173: XETA
C174: 17:02:10.305995 CET | D174: Buy | E174: 220 | F174: 65.88 | G174: EUR | H174: XETA
C175: 17:03:20.749154 CET | D175: Buy | E175: 201 | F175: 65.84 | G175: EUR | H175: XETA
C176: 17:06:47.312559 CET | D176: Buy | E176: 221 | F176: 65.82 | G176: EUR | H176: XETA
C177: 17:08:20.577781 CET | D177: Buy | E177: 355 | F177: 65.84 | G177: EUR | H177: XETA
C178: 17:10:39.537309 CET | D178: Buy | E178: 259 | F178: 65.88 | G178: EUR | H178: XETA
C179: 17:15:16.142478 CET | D179: Buy | E179: 509 | F179: 65.88 | G179: EUR | H179: XETA
C180: 17:17:25.351605 CET | D180: Buy | E180: 364 | F180: 65.86 | G180: EUR | H180: XETA
C181: 17:19:38.735260 CET | D181: Buy | E181: 67 | F181: 65.84 | G181: EUR | H181: XETA
C182: 17:19:38.735317 CET | D182: Buy | E182: 44 | F182: 65.84 | G182: EUR | H182: XETA
C183: 17:19:38.735366 CET | D183: Buy | E183: 287 | F183: 65.84 | G183: EUR | H183: XETA
C184: 17:21:35.681180 CET | D184: Buy | E184: 256 | F184: 65.84 | G184: EUR | H184: XETA
C185: 17:27:26.799 CET | D185: Buy | E185: 243 | F185: 65.84 | G185: EUR | H185: XETA
C186: 17:27:26.837 CET | D186: Buy | E186: 327 | F186: 65.84 | G186: EUR | H186: XETA
C187: 17:29:40.344914 CET | D187: Buy | E187: 228 | F187: 65.86 | G187: EUR | H187: XETA
C188: 17:29:40.702083 CET | D188: Buy | E188: 156 | F188: 65.86 | G188: EUR | H188: XETA
D199: =IF(C199="","","Buy") -> 
D263: =IF(C263="","","Buy") -> 
D327: =IF(C327="","","Buy") -> 
D391: =IF(C391="","","Buy") -> 

Sheet CIQ_LinkingNames (hidden)

Sheet 6-Dezember-2019_GER
A1: Fresenius Medical Care AG & Co. KGaA Aktienrückkauf 2019
C3: Handelsdatum | D3: Anzahl zurückgekaufte Aktien | E3: Durchschnittspreis in € je Aktie | F3: Rückkaufsvolumen in €
C4: 2019-12-06 | D4: =SUM(E7:E1999) -> 37394 | E4: =F4/D4 -> 64.78812804 | F4: =SUMPRODUCT(E7:E4999,F7:F4999) -> 2422687.26
B6: Handelsdatum | C6: Handelszeit | D6: Kauf / Verkauf | E6: Nominale | F6: Ausführungspreis | G6: Währung | H6: Handelsplatz
B7: =+C4 -> 2019-12-06 | C7: 09:09:37.119618 CET | D7: =IF(C7="","","Buy") -> Buy | E7: 186 | F7: 64.72 | G7: EUR | H7: XETA
C8: 09:09:37.36552 CET | D8: =IF(C8="","","Buy") -> Buy | E8: 112 | F8: 64.74 | G8: EUR | H8: XETA
C9: 09:10:50.182663 CET | D9: Buy | E9: 279 | F9: 64.76 | G9: EUR | H9: XETA
C10: 09:13:18.284871 CET | D10: Buy | E10: 244 | F10: 64.7 | G10: EUR | H10: XETA
C11: 09:14:59.808692 CET | D11: Buy | E11: 468 | F11: 64.58 | G11: EUR | H11: XETA
C12: 09:18:32.380341 CET | D12: Buy | E12: 314 | F12: 64.8 | G12: EUR | H12: XETA
C13: 09:19:39.60399 CET | D13: Buy | E13: 225 | F13: 64.64 | G13: EUR | H13: XETA
C14: 09:19:39.60519 CET | D14: Buy | E14: 22 | F14: 64.56 | G14: EUR | H14: XETA
C15: 09:22:58.372693 CET | D15: Buy | E15: 198 | F15: 64.56 | G15: EUR | H15: XETA
C16: 09:22:58.372754 CET | D16: Buy | E16: 400 | F16: 64.88 | G16: EUR | H16: XETA
C17: 09:26:52.50705 CET | D17: Buy | E17: 229 | F17: 64.88 | G17: EUR | H17: XETA
C18: 09:26:52.50762 CET | D18: Buy | E18: 156 | F18: 65.1 | G18: EUR | H18: XETA
C19: 09:29:13.147665 CET | D19: Buy | E19: 56 | F19: 65.1 | G19: EUR | H19: XETA
C20: 09:30:53.692255 CET | D20: Buy | E20: 532 | F20: 65.2 | G20: EUR | H20: XETA
C21: 09:30:53.692347 CET | D21: Buy | E21: 190 | F21: 65.24 | G21: EUR | H21: XETA
C22: 09:34:29.110976 CET | D22: Buy | E22: 14 | F22: 65.24 | G22: EUR | H22: XETA
C23: 09:37:11.255295 CET | D23: Buy | E23: 249 | F23: 65.3 | G23: EUR | H23: XETA
C24: 09:37:11.255349 CET | D24: Buy | E24: 230 | F24: 65.16 | G24: EUR | H24: XETA
C25: 09:42:02.210127 CET | D25: Buy | E25: 168 | F25: 65.16 | G25: EUR | H25: XETA
C26: 09:42:02.210170 CET | D26: Buy | E26: 218 | F26: 65.2 | G26: EUR | H26: XETA
C27: 09:44:17.343285 CET | D27: Buy | E27: 57 | F27: 65.2 | G27: EUR | H27: XETA
C28: 09:44:17.343344 CET | D28: Buy | E28: 69 | F28: 65.24 | G28: EUR | H28: XETA
C29: 09:49:42.397286 CET | D29: Buy | E29: 280 | F29: 65.24 | G29: EUR | H29: XETA
C30: 09:49:42.397387 CET | D30: Buy | E30: 138 | F30: 65.3 | G30: EUR | H30: XETA
C31: 09:51:50.552411 CET | D31: Buy | E31: 69 | F31: 65.3 | G31: EUR | H31: XETA
C32: 09:58:36.775741 CET | D32: Buy | E32: 209 | F32: 65.3 | G32: EUR | H32: XETA
C33: 10:00:08.567454 CET | D33: Buy | E33: 240 | F33: 65.38 | G33: EUR | H33: XETA
C34: 10:04:37.747772 CET | D34: Buy | E34: 309 | F34: 65.44 | G34: EUR | H34: XETA
C35: 10:04:37.842994 CET | D35: Buy | E35: 296 | F35: 65.32 | G35: EUR | H35: XETA
C36: 10:08:59.68049 CET | D36: Buy | E36: 263 | F36: 65.32 | G36: EUR | H36: XETA
C37: 10:15:09.819311 CET | D37: Buy | E37: 455 | F37: 65.28 | G37: EUR | H37: XETA
C38: 10:17:27.294706 CET | D38: Buy | E38: 236 | F38: 65.28 | G38: EUR | H38: XETA
C39: 10:23:47.537742 CET | D39: Buy | E39: 501 | F39: 65.26 | G39: EUR | H39: XETA
C40: 10:26:33.227853 CET | D40: Buy | E40: 222 | F40: 65.24 | G40: EUR | H40: XETA
C41: 10:26:33.227927 CET | D41: Buy | E41: 29 | F41: 65.22 | G41: EUR | H41: XETA
C42: 10:26:53.575034 CET | D42: Buy | E42: 194 | F42: 65.22 | G42: EUR | H42: XETA
C43: 10:26:53.575110 CET | D43: Buy | E43: 4 | F43: 65.2 | G43: EUR | H43: XETA
C44: 10:26:53.575141 CET | D44: Buy | E44: 181 | F44: 65.2 | G44: EUR | H44: XETA
C45: 10:32:56.390777 CET | D45: Buy | E45: 16 | F45: 65.2 | G45: EUR | H45: XETA
C46: 10:33:28.732431 CET | D46: Buy | E46: 137 | F46: 65.16 | G46: EUR | H46: XETA
C47: 10:33:31.694378 CET | D47: Buy | E47: 155 | F47: 65.16 | G47: EUR | H47: XETA
C48: 10:38:11.394250 CET | D48: Buy | E48: 307 | F48: 65.16 | G48: EUR | H48: XETA
C49: 10:40:59.128987 CET | D49: Buy | E49: 264 | F49: 65.18 | G49: EUR | H49: XETA
C50: 10:44:36.376273 CET | D50: Buy | E50: 230 | F50: 65.16 | G50: EUR | H50: XETA
C51: 10:48:36.766630 CET | D51: Buy | E51: 200 | F51: 65.12 | G51: EUR | H51: XETA
C52: 10:53:06.484827 CET | D52: Buy | E52: 212 | F52: 65.14 | G52: EUR | H52: XETA
C53: 10:53:13.524167 CET | D53: Buy | E53: 296 | F53: 65.26 | G53: EUR | H53: XETA
C54: 11:05:08.778215 CET | D54: Buy | E54: 282 | F54: 65.22 | G54: EUR | H54: XETA
C55: 11:05:08.778329 CET | D55: Buy | E55: 73 | F55: 65.22 | G55: EUR | H55: XETA
C56: 11:09:09.14792 CET | D56: Buy | E56: 57 | F56: 65.22 | G56: EUR | H56: XETA
C57: 11:14:00.981372 CET | D57: Buy | E57: 211 | F57: 65.14 | G57: EUR | H57: XETA
C58: 11:18:42.19005 CET | D58: Buy | E58: 224 | F58: 65.1 | G58: EUR | H58: XETA
C59: 11:18:42.19057 CET | D59: Buy | E59: 58 | F59: 65.04 | G59: EUR | H59: XETA
C60: 11:18:42.19092 CET | D60: Buy | E60: 100 | F60: 65.04 | G60: EUR | H60: XETA
C61: 11:21:43.21794 CET | D61: Buy | E61: 55 | F61: 65.04 | G61: EUR | H61: XETA
C62: 11:21:43.21890 CET | D62: Buy | E62: 5 | F62: 64.98 | G62: EUR | H62: XETA
C63: 11:26:44.124395 CET | D63: Buy | E63: 206 | F63: 64.98 | G63: EUR | H63: XETA
C64: 11:32:23.695168 CET | D64: Buy | E64: 205 | F64: 65.06 | G64: EUR | H64: XETA
C65: 11:32:23.697008 CET | D65: Buy | E65: 200 | F65: 64.98 | G65: EUR | H65: XETA
C66: 11:32:23.809474 CET | D66: Buy | E66: 111 | F66: 64.98 | G66: EUR | H66: XETA
C67: 11:32:23.811696 CET | D67: Buy | E67: 200 | F67: 64.98 | G67: EUR | H67: XETA
C68: 11:32:24.169636 CET | D68: Buy | E68: 129 | F68: 64.98 | G68: EUR | H68: XETA
C69: 11:32:24.171629 CET | D69: Buy | E69: 95 | F69: 64.96 | G69: EUR | H69: XETA
C70: 11:47:49.657860 CET | D70: Buy | E70: 105 | F70: 64.96 | G70: EUR | H70: XETA
C71: 11:47:49.657939 CET | D71: Buy | E71: 285 | F71: 64.94 | G71: EUR | H71: XETA
C72: 11:52:14.797877 CET | D72: =IF(C72="","","Buy") -> Buy | E72: 27 | F72: 64.94 | G72: EUR | H72: XETA
C73: 11:52:14.797953 CET | D73: Buy | E73: 23 | F73: 64.9 | G73: EUR | H73: XETA
C74: 11:55:54.477014 CET | D74: Buy | E74: 363 | F74: 64.9 | G74: EUR | H74: XETA
C75: 11:55:54.587863 CET | D75: Buy | E75: 100 | F75: 64.82 | G75: EUR | H75: XETA
C76: 11:55:54.587981 CET | D76: Buy | E76: 95 | F76: 64.82 | G76: EUR | H76: XETA
C77: 12:00:01.769283 CET | D77: Buy | E77: 47 | F77: 64.82 | G77: EUR | H77: XETA
C78: 12:00:05.436676 CET | D78: Buy | E78: 7 | F78: 64.72 | G78: EUR | H78: XETA
C79: 12:03:31.924013 CET | D79: Buy | E79: 100 | F79: 64.72 | G79: EUR | H79: XETA
C80: 12:03:31.924013 CET | D80: Buy | E80: 459 | F80: 64.78 | G80: EUR | H80: XETA
C81: 12:03:31.924081 CET | D81: Buy | E81: 19 | F81: 64.78 | G81: EUR | H81: XETA
C82: 12:15:35.983134 CET | D82: Buy | E82: 240 | F82: 64.78 | G82: EUR | H82: XETA
C83: 12:15:36.62479 CET | D83: Buy | E83: 267 | F83: 64.7 | G83: EUR | H83: XETA
C84: 12:15:36.62598 CET | D84: Buy | E84: 168 | F84: 64.7 | G84: EUR | H84: XETA
C85: 12:25:26.50331 CET | D85: Buy | E85: 366 | F85: 64.7 | G85: EUR | H85: XETA
C86: 12:32:18.194580 CET | D86: Buy | E86: 219 | F86: 64.64 | G86: EUR | H86: XETA
C87: 12:45:44.454570 CET | D87: Buy | E87: 235 | F87: 64.62 | G87: EUR | H87: XETA
C88: 12:48:34.979286 CET | D88: Buy | E88: 42 | F88: 64.56 | G88: EUR | H88: XETA
C89: 12:50:26.793016 CET | D89: Buy | E89: 276 | F89: 64.58 | G89: EUR | H89: XETA
C90: 12:53:03.373473 CET | D90: Buy | E90: 242 | F90: 64.6 | G90: EUR | H90: XETA
C91: 13:03:32.413186 CET | D91: Buy | E91: 66 | F91: 64.58 | G91: EUR | H91: XETA
C92: 13:03:32.413401 CET | D92: Buy | E92: 41 | F92: 64.48 | G92: EUR | H92: XETA
C93: 13:03:32.413449 CET | D93: Buy | E93: 4 | F93: 64.48 | G93: EUR | H93: XETA
C94: 13:04:35.748165 CET | D94: Buy | E94: 326 | F94: 64.48 | G94: EUR | H94: XETA
C95: 13:04:35.748225 CET | D95: Buy | E95: 295 | F95: 64.44 | G95: EUR | H95: XETA
C96: 13:09:02.490421 CET | D96: Buy | E96: 7 | F96: 64.44 | G96: EUR | H96: XETA
C97: 13:09:02.490522 CET | D97: Buy | E97: 174 | F97: 64.44 | G97: EUR | H97: XETA
C98: 13:09:10.357795 CET | D98: Buy | E98: 52 | F98: 64.44 | G98: EUR | H98: XETA
C99: 13:09:10.357849 CET | D99: Buy | E99: 200 | F99: 64.42 | G99: EUR | H99: XETA
C100: 13:14:52.143722 CET | D100: Buy | E100: 12 | F100: 64.42 | G100: EUR | H100: XETA
C101: 13:18:28.699222 CET | D101: Buy | E101: 205 | F101: 64.3 | G101: EUR | H101: XETA
C102: 13:19:09.876319 CET | D102: Buy | E102: 263 | F102: 64.2 | G102: EUR | H102: XETA
C103: 13:21:20.717369 CET | D103: Buy | E103: 204 | F103: 64.2 | G103: EUR | H103: XETA
C104: 13:21:20.717369 CET | D104: Buy | E104: 657 | F104: 64.1 | G104: EUR | H104: XETA
C105: 13:29:44.82597 CET | D105: Buy | E105: 386 | F105: 64.12 | G105: EUR | H105: XETA
C106: 13:52:41.800067 CET | D106: Buy | E106: 242 | F106: 63.88 | G106: EUR | H106: XETA
C107: 13:52:41.800421 CET | D107: Buy | E107: 39 | F107: 63.9 | G107: EUR | H107: XETA
C108: 13:58:56.201596 CET | D108: Buy | E108: 192 | F108: 63.9 | G108: EUR | H108: XETA
C109: 13:58:56.201668 CET | D109: Buy | E109: 116 | F109: 63.94 | G109: EUR | H109: XETA
C110: 14:09:33.221204 CET | D110: Buy | E110: 114 | F110: 63.94 | G110: EUR | H110: XETA
C111: 14:09:40.378841 CET | D111: Buy | E111: 251 | F111: 64.12 | G111: EUR | H111: XETA
C112: 14:09:40.378906 CET | D112: Buy | E112: 121 | F112: 64.1 | G112: EUR | H112: XETA
C113: 14:20:54.507865 CET | D113: Buy | E113: 216 | F113: 64.1 | G113: EUR | H113: XETA
C114: 14:24:50.216504 CET | D114: Buy | E114: 285 | F114: 64.1 | G114: EUR | H114: XETA
C115: 14:27:34.31044 CET | D115: Buy | E115: 208 | F115: 64.08 | G115: EUR | H115: XETA
C116: 14:30:00.638033 CET | D116: Buy | E116: 293 | F116: 64.08 | G116: EUR | H116: XETA
C117: 14:32:41.515620 CET | D117: Buy | E117: 228 | F117: 64.04 | G117: EUR | H117: XETA
C118: 14:34:53.306052 CET | D118: Buy | E118: 135 | F118: 64.44 | G118: EUR | H118: XETA
C119: 14:36:04.718132 CET | D119: Buy | E119: 250 | F119: 64.54 | G119: EUR | H119: XETA
C120: 14:43:52.424840 CET | D120: Buy | E120: 256 | F120: 64.5 | G120: EUR | H120: XETA
C121: 14:50:02.64005 CET | D121: Buy | E121: 260 | F121: 64.64 | G121: EUR | H121: XETA
C122: 14:50:02.64063 CET | D122: Buy | E122: 110 | F122: 64.7 | G122: EUR | H122: XETA
C123: 14:56:26.367798 CET | D123: Buy | E123: 220 | F123: 64.7 | G123: EUR | H123: XETA
C124: 15:01:16.508739 CET | D124: Buy | E124: 324 | F124: 64.82 | G124: EUR | H124: XETA
C125: 15:01:16.550346 CET | D125: Buy | E125: 3 | F125: 64.78 | G125: EUR | H125: XETA
C126: 15:06:58.26548 CET | D126: Buy | E126: 210 | F126: 64.78 | G126: EUR | H126: XETA
C127: 15:06:58.26607 CET | D127: Buy | E127: 87 | F127: 64.82 | G127: EUR | H127: XETA
C128: 15:12:41.426509 CET | D128: Buy | E128: 244 | F128: 64.82 | G128: EUR | H128: XETA
C129: 15:18:43.505507 CET | D129: Buy | E129: 248 | F129: 64.88 | G129: EUR | H129: XETA
C130: 15:25:52.159846 CET | D130: Buy | E130: 442 | F130: 64.84 | G130: EUR | H130: XETA
C131: 15:25:52.159911 CET | D131: Buy | E131: 15 | F131: 64.82 | G131: EUR | H131: XETA
C132: 15:29:45.566281 CET | D132: Buy | E132: 210 | F132: 64.82 | G132: EUR | H132: XETA
C133: 15:30:56.76186 CET | D133: Buy | E133: 248 | F133: 64.86 | G133: EUR | H133: XETA
C134: 15:32:47.489572 CET | D134: Buy | E134: 263 | F134: 64.88 | G134: EUR | H134: XETA
C135: 15:32:48.537991 CET | D135: Buy | E135: 30 | F135: 64.84 | G135: EUR | H135: XETA
C136: 15:32:48.538257 CET | D136: =IF(C136="","","Buy") -> Buy | E136: 200 | F136: 64.84 | G136: EUR | H136: XETA
C137: 15:34:41.704306 CET | D137: Buy | E137: 40 | F137: 64.84 | G137: EUR | H137: XETA
C138: 15:35:57.978184 CET | D138: Buy | E138: 213 | F138: 64.86 | G138: EUR | H138: XETA
C139: 15:39:59.29406 CET | D139: Buy | E139: 313 | F139: 64.82 | G139: EUR | H139: XETA
C140: 15:41:07.520341 CET | D140: Buy | E140: 282 | F140: 64.74 | G140: EUR | H140: XETA
C141: 15:47:06.93121 CET | D141: Buy | E141: 242 | F141: 64.7 | G141: EUR | H141: XETA
C142: 15:51:19.960127 CET | D142: Buy | E142: 258 | F142: 64.52 | G142: EUR | H142: XETA
C143: 15:55:00.211284 CET | D143: Buy | E143: 203 | F143: 64.52 | G143: EUR | H143: XETA
C144: 15:55:00.62961 CET | D144: Buy | E144: 275 | F144: 64.56 | G144: EUR | H144: XETA
C145: 15:55:00.63018 CET | D145: Buy | E145: 203 | F145: 64.56 | G145: EUR | H145: XETA
C146: 15:59:39.737207 CET | D146: Buy | E146: 49 | F146: 64.56 | G146: EUR | H146: XETA
C147: 15:59:39.823885 CET | D147: Buy | E147: 308 | F147: 64.66 | G147: EUR | H147: XETA
C148: 16:02:07.924742 CET | D148: Buy | E148: 276 | F148: 64.66 | G148: EUR | H148: XETA
C149: 16:02:07.924820 CET | D149: Buy | E149: 202 | F149: 64.68 | G149: EUR | H149: XETA
C150: 16:04:02.688157 CET | D150: Buy | E150: 9 | F150: 64.68 | G150: EUR | H150: XETA
C151: 16:05:14.325313 CET | D151: Buy | E151: 216 | F151: 64.7 | G151: EUR | H151: XETA
C152: 16:05:14.325477 CET | D152: Buy | E152: 32 | F152: 64.7 | G152: EUR | H152: XETA
C153: 16:05:14.325854 CET | D153: Buy | E153: 70 | F153: 64.7 | G153: EUR | H153: XETA
C154: 16:08:59.92242 CET | D154: Buy | E154: 130 | F154: 64.7 | G154: EUR | H154: XETA
C155: 16:12:03.204886 CET | D155: Buy | E155: 472 | F155: 64.72 | G155: EUR | H155: XETA
C156: 16:15:04.987272 CET | D156: Buy | E156: 308 | F156: 64.82 | G156: EUR | H156: XETA
C157: 16:15:05.111723 CET | D157: Buy | E157: 332 | F157: 64.84 | G157: EUR | H157: XETA
C158: 16:22:18.939710 CET | D158: Buy | E158: 209 | F158: 64.84 | G158: EUR | H158: XETA
C159: 16:26:22.433393 CET | D159: Buy | E159: 379 | F159: 64.82 | G159: EUR | H159: XETA
C160: 16:28:35.111522 CET | D160: Buy | E160: 414 | F160: 64.84 | G160: EUR | H160: XETA
C161: 16:37:41.367002 CET | D161: Buy | E161: 517 | F161: 64.84 | G161: EUR | H161: XETA
C162: 16:37:41.367084 CET | D162: Buy | E162: 124 | F162: 64.92 | G162: EUR | H162: XETA
C163: 16:37:41.367126 CET | D163: Buy | E163: 43 | F163: 64.92 | G163: EUR | H163: XETA
C164: 16:37:41.474650 CET | D164: Buy | E164: 137 | F164: 64.92 | G164: EUR | H164: XETA
C165: 16:41:32.819495 CET | D165: Buy | E165: 247 | F165: 64.92 | G165: EUR | H165: XETA
C166: 16:41:32.820655 CET | D166: Buy | E166: 6 | F166: 64.94 | G166: EUR | H166: XETA
C167: 16:45:38.805070 CET | D167: Buy | E167: 237 | F167: 64.94 | G167: EUR | H167: XETA
C168: 16:46:54.772567 CET | D168: Buy | E168: 313 | F168: 64.98 | G168: EUR | H168: XETA
C169: 16:47:34.287381 CET | D169: Buy | E169: 40 | F169: 65 | G169: EUR | H169: XETA
C170: 16:49:33.615155 CET | D170: Buy | E170: 166 | F170: 65 | G170: EUR | H170: XETA
C171: 16:51:03.767799 CET | D171: Buy | E171: 187 | F171: 64.98 | G171: EUR | H171: XETA
C172: 16:51:04.46281 CET | D172: Buy | E172: 224 | F172: 64.98 | G172: EUR | H172: XETA
C173: 16:55:34.224495 CET | D173: Buy | E173: 308 | F173: 64.96 | G173: EUR | H173: XETA
C174: 16:58:19.441228 CET | D174: Buy | E174: 404 | F174: 64.84 | G174: EUR | H174: XETA
C175: 17:02:17.720130 CET | D175: Buy | E175: 230 | F175: 64.76 | G175: EUR | H175: XETA
C176: 17:03:18.720101 CET | D176: Buy | E176: 213 | F176: 64.82 | G176: EUR | H176: XETA
C177: 17:03:49.490962 CET | D177: Buy | E177: 14 | F177: 64.82 | G177: EUR | H177: XETA
C178: 17:04:06.720305 CET | D178: Buy | E178: 50 | F178: 64.82 | G178: EUR | H178: XETA
C179: 17:04:06.720378 CET | D179: Buy | E179: 29 | F179: 64.82 | G179: EUR | H179: XETA
C180: 17:04:26.918643 CET | D180: Buy | E180: 134 | F180: 64.82 | G180: EUR | H180: XETA
C181: 17:04:26.919282 CET | D181: Buy | E181: 155 | F181: 64.82 | G181: EUR | H181: XETA
C182: 17:08:54.181921 CET | D182: Buy | E182: 49 | F182: 64.82 | G182: EUR | H182: XETA
C183: 17:09:28.843261 CET | D183: Buy | E183: 380 | F183: 64.8 | G183: EUR | H183: XETA
C184: 17:15:11.313863 CET | D184: Buy | E184: 398 | F184: 64.76 | G184: EUR | H184: XETA
C185: 17:15:11.544713 CET | D185: Buy | E185: 222 | F185: 64.76 | G185: EUR | H185: XETA
C186: 17:16:59.425071 CET | D186: Buy | E186: 208 | F186: 64.74 | G186: EUR | H186: XETA
C187: 17:17:32.194204 CET | D187: Buy | E187: 44 | F187: 64.68 | G187: EUR | H187: XETA
C188: 17:17:32.194260 CET | D188: Buy | E188: 348 | F188: 64.66 | G188: EUR | H188: XETA
C189: 17:22:37.492436 CET | D189: Buy | E189: 81 | F189: 64.66 | G189: EUR | H189: XETA
C190: 17:24:25.549589 CET | D190: Buy | E190: 455 | F190: 64.6 | G190: EUR | H190: XETA
C191: 17:24:25.558497 CET | D191: Buy | E191: 252 | F191: 64.62 | G191: EUR | H191: XETA
C192: 17:26:37.428765 CET | D192: Buy | E192: 25 | F192: 64.62 | G192: EUR | H192: XETA
C193: 17:29:15.169558 CET | D193: Buy | E193: 182 | F193: 64.62 | G193: EUR | H193: XETA
C194: 17:29:50.770345 CET | D194: Buy | E194: 374 | F194: 64.64 | G194: EUR | H194: XETA
C195: 17:29:55.514850 CET | D195: Buy | E195: 161 | F195: 64.66 | G195: EUR | H195: XETA
E196: 95 | F196: 64.64 | G196: EUR | H196: XETA
D200: =IF(C200="","","Buy") -> 
D264: =IF(C264="","","Buy") -> 
D328: =IF(C328="","","Buy") -> 
D392: =IF(C392="","","Buy") -> 
D456: =IF(C456="","","Buy") -> 
D489: =IF(C489="","","Buy") -> 
